Workbook

Sheet Step 1 - Project Info
A1: Multifamily Initiative Project Fill Out Form
A2: Rev. 4/11/2022 | B2: PROJECT INFO
B3: Property Name
B4: Property Street Number
B5: Property Street
B6: Property Street Address Line 2
B7: Property City
B8: Property Zip Code
B9: Customer Electric (Master) Account Number (required)
B10: Customer Gas (Master) Account Number (required)
B11: Customer Contact First Name (For LOA to be addressed to)
B12: Customer Contact Last Name (For LOA to be addressed to)
B13: Customer Contact Title
B14: Customer Company Name
B15: Customer Contact Phone Number
B16: Customer E-mail Address
B17: Customer Street Number
B18: Customer Street
B19: Customer City
B20: Customer State
B21: Customer Zip Code
B22: Contractor Company Name
B23: Contractor Contact Person
B24: Contractor Project Contact Phone Number
B25: Contractor Project Contact E-mail Address
B26: Contractor Company Address
B27: Estimated project completion date (LOA Expiration date)?
B28: Will incentive be paid to Customer or Contractor?
B29: Incentive check payable to: Name of company and company representative
B30: Incentive check payee: company address
B31: Utility Contact - Project Lead
B32: Is Income Eligible or Market Rate Property
B33: Total Measures being proposed
B34: Building Type
B35: Number of Buildings
B36: Number of dwelling units in project
B37: Heating Fuel
B38: DHW Fuel
B39: Cooling System
B40: Heating Utility
B41: Electric Utility
A42: Note: select yes for measures being proposed
B43: Energy Efficiency Upgrades | C43: Proposed | D43: Health and Safety Issue
A44: 1 | B44: Air Sealing | C44: No
A45: 2 | B45: Low Flow DHW | C45: No
A46: 3 | B46: Dwelling Unit Lighting | C46: No
A47: 4 | B47: Common and Exterior Lighting | C47: No
A48: 5 | B48: Insulation | C48: No
A49: 6 | B49: Window Replacements | C49: No
A50: 7 | B50: Refrigerators Replacement | C50: No
A51: 8 | B51: HVAC & DHW Equipment | C51: Yes
A52: 9 | B52: Smart Thermostats | C52: No
A53: 10 | B53: Custom Measure | C53: No

Sheet Dropdown (hidden)
L2: Dwelling Unit Lighting | Q2: HVAC | Y2: Insulation
B3: Competitive Resources, Inc., 60 Church Street, Suite #2, Yalesville, CT 06492 | D3: Andover | E3: Carl Watts | F3: Multifamily Low-Rise Apartments 1-3 stories | G3: None | H3: None | I3: Eversource Electric | J3: Central AC | L3: Recessed | M3: Recessed | N3: New Fixtures | O3: Standard Interior | Q3: Electric Heater | R3: Constant Volume | S3: Individual | T3: Electric Water Heater | U3: Indirect | V3: Pressure | W3: Packaged DX
B4: Handyman Express Energy Solutions, LLC, 1414 Barnum Avenue,Stratford, CT 06614 | D4: Ansonia | E4: Dana Forrester | F4: Multifamily Mid-Rise Apartments 4 - 5 stories | G4: Air Sealing | H4: ALM ducts | I4: UI Electric | J4: Window AC | L4: Drum | M4: Drum | N4: Retrofit Fixtures | O4: Standard Exterior | Q4: Gas Boiler | R4: Variable Speed | S4: Central | T4: Heat Pump Water Heater | U4: Storage | V4: Temperature | W4: Chiller Plant | Y4: Attic
B5: New England Smart Energy Group, LLC, 34 Sherman Court, Fairfield, CT 06824 | D5: Ashford | E5: Natalia Sudyka | F5: Multifamily High-Rise Apartments 6 stories or more | G5: Low Flow DHW | H5: ALM ducts and pipes | I5: Eversource Gas | J5: None | L5: Wrap | M5: Wrap | N5: Screw-in LED | O5: High-Performance Interior | Q5: Condensing Gas Boiler | T5: Gas Water Heater | U5: Instananeous | W5: Ductless Mini Split | Y5: Roof line/ Vaulted Ceiling
B6: Santa Fuel, Inc., 154 Admiral Street, Bridgeport, CT 06605 | D6: Avon | E6: Alysse Rodrigues | F6: Multifamily Apartments | G6: Dwelling Unit Lighting | H6: ALM pipes | I6: CNG Gas | J6: Other | L6: Troffer | M6: Troffer | N6: Controls Only | O6: High-Performance Exterior | Q6: Oil Boiler | T6: Oil Water Heater | U6: Stand Alone Non-Storage | W6: DX Split | Y6: Foundation wall
B7: Action for Bridgeport Community Development, 1070 Park Avenue, Bridegeport, CT 06604 | D7: Barkhamsted | F7: Multifamily Townhouse | G7: Common and Exterior Lighting | H7: CO | I7: SCG Gas | L7: Sconce | M7: Sconce | N7: Miscellaneous Costs | Q7: HydroAir | T7: Propane Water Heater | W7: DX HP | Y7: Basement Ceiling
B8: The Access Agency, 1315 Main Street, Willimantic, CT 06226 | D8: Beacon Falls | F8: Multifamily Other | G8: Insulation | H8: Customer refused | I8: Prop. Gas | L8: Jelly Jar | M8: Jelly Jar | N8: Non-Eligible | Q8: Propane Boiler | W8: Air Source Heat Pump | Y8: Exterior Wall
B9: Community Renewal Team, Inc., 555 Windsor Street, Hartford, CT 06120 | D9: Berlin | G9: Window Replacements | H9: Failed CAZ | I9: Oil | L9: Square | M9: Square | Q9: Electric Furnace | W9: Watersource Heat Pump | Y9: Crawlspace Wall
B10: Energy Resources Group Technologies, Inc., 1831 Middletown Ave, Northford, CT, 06472 | D10: Bethany | G10: Refrigerators Replacement | H10: Failed spillage clean up | I10: Other | L10: Cloud | M10: Cloud | Q10: Gas Furnace | W10: Ground Source Heat Pump | Y10: Crawlspace Ceiling
B11: New Opportunities, Inc., 232 North Elm Street, Waterbury, CT 06702 | D11: Bethel | G11: HVAC & DHW Equipment | H11: Gas leak customer side | L11: Strip | M11: Strip | Q11: Condensing Gas Furnace | W11: Window Unit | Y11: Rim Joist
B12: BantamWesson, 145 Railroad Hill St, Waterbury, CT 06708 | D12: Bethlehem | G12: Smart Thermostats | H12: Gas leak utility side | L12: Vanity | M12: Vanity | Q12: Oil Furnace | W12: Geothermal Heat Pump | Y12: Attic Hatch Cover
B13: CMC Energy Services, 4 Tower Dr, Wallingford, CT 06492 | D13: Bloomfield | G13: Custom Measure | H13: Gas leaks both sides | L13: Table Lamp | M13: Table Lamp | Q13: Propane Furnace | Y13: Attic Pull Down Stairs Cover
B14: Dynamic Building and Energy Solutions LLC, 183 Providence-New London Tpke, North Stonington, CT 06359 | D14: Bolton | G14: Duct Sealing Custom | H14: Lead | L14: Floor Lamp | M14: Floor Lamp | Q14: Ductless MiniSplit | Y14: Attic Whole House Fan Cover
B15: Energy Efficiency Solutions LLC, 77 Pierson Lane, Unit A, Windsor, CT 06095 | D15: Bozrah | H15: Mold | L15: Keyless | M15: Keyless | Q15: Ducted Heat Pumps | Y15: Attic Air Sealing
B16: Homestead HES, 100 West Rd, Ellington, CT 06029 | D16: Branford | H16: MVG | L16: Plate | M16: Wallpack
B17: Lantern Energy, 256 Oakwood Dr, Suite 3, Glastonbury, CT 06033 | D17: Bridgeport | H17: Pest infestation | L17: Other | M17: Bollard
B18: JT Energy LLC, 79 Village Hill Rd, Willington, CT, 06279 | D18: Bridgewater | H18: Vermiculite | M18: Flood
B19: Tallento Construction Group, 343 Gurdon St, Bridgeport, CT 06606 | D19: Bristol | G19: Air Sealing | H19: Unvented gas appliance | M19: Canopy
D20: Brookfield | G20: Air Source Heat Pump | M20: Acorn
D21: Brooklyn | G21: Boiler | M21: Par Flood
D22: Burlington | G22: Central AC | M22: Shoebox
B23: EVERSOURCE GAS | D23: Canaan | G23: Common and Exterior Lighting | M23: Exit Light
B24: CNG GAS | D24: Canterbury | G24: Controls | M24: Other
B25: SCG GAS | D25: Canton | G25: Customer refused
B26: OIL | D26: Chaplin | G26: Dwelling Unit Lighting Bulbs
B27: PROPANE | D27: Cheshire | G27: Dwelling Unit Lighting Fixtures
B28: UI ELECTRIC | D28: Chester | G28: Duct Sealing
B29: EVERSOURCE ELECTRIC | D29: Clinton | G29: ECM Pumps
B30: OTHER | D30: Colchester | G30: Furnace
D31: Colebrook | G31: Heat Pump Hot Water Heater
B32: Market Rate | D32: Columbia | G32: Hot Water Heater
B33: Income Eligible | D33: Cornwall | G33: Insulation
D34: Coventry | G34: Refrigerators
D35: Cromwell | G35: Variable Frequency Drive (VFD)
D36: Danbury | G36: Water Measures
D37: Darien | G37: Water Source Heat Pump
D38: Deep River | G38: Window Replacement
D39: Derby | G39: Custom
D40: East Windsor
D41: Eastford
D42: Easton
D43: Enfield
D44: Essex
D45: Fairfield
D46: Farmington
D47: Glastonbury
D48: Goshen
D49: Granby
D50: Greenwich
D51: Griswold
D52: Groton
D53: Guilford
D54: Haddam
D55: Hamden
D56: Hampton
D57: Hartford
D58: Hartland
D59: Harwinton
D60: Hebron
D61: Kent
D62: Killingly
D63: Killingworth
D64: Lebanon
D65: Ledyard
D66: Lisbon
D67: Litchfield
D68: Lyme
D69: Madison
D70: Manchester
D71: Mansfield
D72: Marlborough
D73: Meriden
D74: Middlebury
D75: Middlefield
D76: Middletown
D77: Milford
D78: Monroe
D79: Montville
D80: Morris
D81: Naugatuck
D82: New Britain
D83: New Canaan
D84: New Fairfield
D85: New Hartford
D86: New Haven
D87: New London
D88: New Milford
D89: Newington
D90: Newtown
D91: Noank
D92: Norfolk
D93: North Branford
D94: North Canaan
D95: North Haven
D96: North Stonington
D97: Norwalk
D98: Norwich
D99: Old Lyme
D100: Old Saybrook
D101: Orange
D102: Oxford
D103: Plainfield
D104: Plainville
D105: Plymouth
D106: Pomfret
D107: Portland
D108: Preston
D109: Prospect
D110: Putnam
D111: Redding
D112: Ridgefield
D113: Rocky Hill
D114: Roxbury
D115: Salem
D116: Salisbury
D117: Scotland
D118: Seymour
D119: Sharon
D120: Shelton
D121: Sherman
D122: Simsbury
D123: Somers
D124: South Windsor
D125: Southbury
D126: Southington
D127: Sprague
D128: Stafford
D129: Stamford
D130: Sterling
D131: Stonington
D132: Stratford
D133: Suffield
D134: Terryville
D135: Thomaston
D136: Thompson
D137: Tolland
D138: Torrington
D139: Trumbull
D140: Union
D141: Vernon
D142: Voluntown
D143: Wallingford
D144: Warren
D145: Washington
D146: Waterbury
D147: Waterford
D148: Watertown
D149: West Hartford
D150: West Haven
D151: Westbrook
D152: Weston
D153: Westport
D154: Wethersfield
D155: Willimantic
D156: Willington
D157: Wilton
D158: Winchester
D159: Windham
D160: Windsor
D161: Windsor Locks
D162: Wolcott
D163: Woodbridge
D164: Woodbury
D165: Woodstock

Sheet Direct Install - Unit Matrix
A1: ='Step 1 - Project Info'!$C$3&" - "&'Step 1 - Project Info'!$C$7 -> -
A3: Instructions:
A4: Direct Install measures include the following dwelling unit measures assessed and implemented by a direct install contractor*: air sealing, duct sealing, domestic hot water saving measures (e.g., low flow shower heads, faucet aerators, pipe wrap), and light bulbs (for income eligible only).
A5: 1) A 10% representative sampling of dwelling units across the multifamily property must be conducted to determine the energy savings opportunities. Units sampled should be 10% of each unit type based on # bedrooms/studios and location (e.g., top corner, top middle, bottom corner, bottom middle, middle floor corner, middle floor center, etc.).
A6: 2) During sampling, a contractor will perform services in each of the identified sample units.
A7: 3) For each sample unit, please complete the below table which summarizes the measures performed during sampling.
A8: 4) For each sample unit, provide detailed information regarding measures installed during sampling on the applicable tabs generated within this Project Fillout Form.
A10: Total Units by Type | B10: Quantity
A11: Efficiency/ Studio
A12: 1 Bedrooms
A13: 2 Bedrooms
A14: 3 Bedrooms
A15: 4 Bedrooms
C18: Unit Identification in sample | D18: Air Sealing | E18: Duct Sealing | F18: DHW Savings | G18: Dwelling Unit Bulbs (IE ONLY) | J18: =IF(C19<>"",IF('Step 1 - Project Info'!$C$44<>"",IF('Step 1 - Project Info'!$C$44="Yes","Air Sealing",None),""),"") -> 

Sheet Air Sealing (hidden)
C2: ='Step 1 - Project Info'!$C$3&" - "&'Step 1 - Project Info'!$C$7 -> -
C5: Total Number of Units | D5: ='Step 1 - Project Info'!C36 -> 0
C6: Total Sample Units | D6: =COUNTA('Direct Install - Unit Matrix'!C19:C38) -> 0
C7: Number of Floors | D7: 0
C8: Number of Buildings | D8: 0 | F8: Note: Units sampled should be 10% of each unit type unless the property is 20 units or less, then all units must be included below (# bedrooms/ Studios, Location (Top Corner, Top Middle, Bottom Corner, Bottom Middle, Mid Fl Corner, Mid Fl Center)) | O8: AIR SEALING DETAIL
C9: Name of Lead Technician w/ BPI Multifamily Certification & Any Other Technicians Performing Air Sealing | O9: (1) What was air sealed? Air sealing time and location on exterior or interior wall | R9: (2) What was air sealed? Air sealing time and location on exterior or interior wall | U9: (3) What was air sealed? Air sealing time and location on exterior or interior wall | X9: (4) What was air sealed? Air sealing time and location on exterior or interior wall
C10: Sample Apt # | D10: Is Entrance Door Interior/ Exterior? | E10: Bedroom type (Studio, 1BDRM, etc..) | F10: Unit Locations (Top, Corner, Bottom, Middle) | G10: SqFT of Unit | H10: Age (years) of Building | I10: Number of Techs Air Sealing Per Unit | J10: Total Hours per Unit | K10: Total Linear Feet of Sealing per Unit | L10: Total Number Gaskets per Unit | M10: Door Weather Stripped Per Linear Feet per Unit | N10: Total Number of Door Sweeps per Unit | O10: What was Air Sealed? | P10: Air Sealing Time (Hours) | Q10: Interior Wall, Exterior Wall, Interior Ceiling, Attic Floor, Basement Ceiling, Interior Ceiling, Basement Exterior walls | R10: What was Air Sealed? | S10: Air Sealing Time (Hours) | T10: Interior Wall, Exterior Wall, Interior Ceiling, Attic Floor, Basement Ceiling, Interior Ceiling, Basement Exterior walls | U10: What was Air Sealed? | V10: Air Sealing Time (Hours) | W10: Interior Wall, Exterior Wall, Interior Ceiling, Attic Floor, Basement Ceiling, Interior Ceiling, Basement Exterior walls | X10: What was Air Sealed? | Y10: Air Sealing Time (Hours) | Z10: Interior Wall, Exterior Wall, Interior Ceiling, Attic Floor, Basement Ceiling, Interior Ceiling, Basement Exterior walls
B11: EXAMPLE | C11: Unit 1 | D11: Interior | E11: 1 BDRM | F11: TOP FL | G11: 1100 | H11: 1980 | I11: 2 | J11: 0.75 | K11: 120 | L11: 4 | M11: 10 | N11: 2 | O11: bottom and top plate/exterior wall | P11: 0.5 | Q11: exterior wall | R11: Kitchen sink penetration | S11: 0.15 | T11: interior wall | U11: bathroom exhaust vent | V11: 0.1 | W11: attic ceiling
C12: =IFERROR(INDEX('Direct Install - Unit Matrix'!$C$19:$C$38,SMALL(IF('Direct Install - Unit Matrix'!$D$19:$D$38<>"",ROW('Direct Install - Unit Matrix'!$C$19:$C$38)-ROW('Direct Install - Unit Matrix'!C$19)+1),ROWS('Direct Install - Unit Matrix'!C$19:C20))),"") -> 
C13: =IFERROR(INDEX('Direct Install - Unit Matrix'!$C$19:$C$38,SMALL(IF('Direct Install - Unit Matrix'!$D$19:$D$38<>"",ROW('Direct Install - Unit Matrix'!$C$19:$C$38)-ROW('Direct Install - Unit Matrix'!C$19)+1),ROWS('Direct Install - Unit Matrix'!C$19:C21))),"") -> 
C14: =IFERROR(INDEX('Direct Install - Unit Matrix'!$C$19:$C$38,SMALL(IF('Direct Install - Unit Matrix'!$D$19:$D$38<>"",ROW('Direct Install - Unit Matrix'!$C$19:$C$38)-ROW('Direct Install - Unit Matrix'!C$19)+1),ROWS('Direct Install - Unit Matrix'!C$19:C22))),"") -> 
C15: =IFERROR(INDEX('Direct Install - Unit Matrix'!$C$19:$C$38,SMALL(IF('Direct Install - Unit Matrix'!$D$19:$D$38<>"",ROW('Direct Install - Unit Matrix'!$C$19:$C$38)-ROW('Direct Install - Unit Matrix'!C$19)+1),ROWS('Direct Install - Unit Matrix'!C$19:C23))),"") -> 
C16: =IFERROR(INDEX('Direct Install - Unit Matrix'!$C$19:$C$38,SMALL(IF('Direct Install - Unit Matrix'!$D$19:$D$38<>"",ROW('Direct Install - Unit Matrix'!$C$19:$C$38)-ROW('Direct Install - Unit Matrix'!C$19)+1),ROWS('Direct Install - Unit Matrix'!C$19:C24))),"") -> 
C17: =IFERROR(INDEX('Direct Install - Unit Matrix'!$C$19:$C$38,SMALL(IF('Direct Install - Unit Matrix'!$D$19:$D$38<>"",ROW('Direct Install - Unit Matrix'!$C$19:$C$38)-ROW('Direct Install - Unit Matrix'!C$19)+1),ROWS('Direct Install - Unit Matrix'!C$19:C25))),"") -> 
C18: =IFERROR(INDEX('Direct Install - Unit Matrix'!$C$19:$C$38,SMALL(IF('Direct Install - Unit Matrix'!$D$19:$D$38<>"",ROW('Direct Install - Unit Matrix'!$C$19:$C$38)-ROW('Direct Install - Unit Matrix'!C$19)+1),ROWS('Direct Install - Unit Matrix'!C$19:C26))),"") -> 
C19: =IFERROR(INDEX('Direct Install - Unit Matrix'!$C$19:$C$38,SMALL(IF('Direct Install - Unit Matrix'!$D$19:$D$38<>"",ROW('Direct Install - Unit Matrix'!$C$19:$C$38)-ROW('Direct Install - Unit Matrix'!C$19)+1),ROWS('Direct Install - Unit Matrix'!C$19:C27))),"") -> 
C20: =IFERROR(INDEX('Direct Install - Unit Matrix'!$C$19:$C$38,SMALL(IF('Direct Install - Unit Matrix'!$D$19:$D$38<>"",ROW('Direct Install - Unit Matrix'!$C$19:$C$38)-ROW('Direct Install - Unit Matrix'!C$19)+1),ROWS('Direct Install - Unit Matrix'!C$19:C28))),"") -> 
C21: =IFERROR(INDEX('Direct Install - Unit Matrix'!$C$19:$C$38,SMALL(IF('Direct Install - Unit Matrix'!$D$19:$D$38<>"",ROW('Direct Install - Unit Matrix'!$C$19:$C$38)-ROW('Direct Install - Unit Matrix'!C$19)+1),ROWS('Direct Install - Unit Matrix'!C$19:C29))),"") -> 
C22: =IFERROR(INDEX('Direct Install - Unit Matrix'!$C$19:$C$38,SMALL(IF('Direct Install - Unit Matrix'!$D$19:$D$38<>"",ROW('Direct Install - Unit Matrix'!$C$19:$C$38)-ROW('Direct Install - Unit Matrix'!C$19)+1),ROWS('Direct Install - Unit Matrix'!C$19:C30))),"") -> 
C23: =IFERROR(INDEX('Direct Install - Unit Matrix'!$C$19:$C$38,SMALL(IF('Direct Install - Unit Matrix'!$D$19:$D$38<>"",ROW('Direct Install - Unit Matrix'!$C$19:$C$38)-ROW('Direct Install - Unit Matrix'!C$19)+1),ROWS('Direct Install - Unit Matrix'!C$19:C31))),"") -> 
C24: =IFERROR(INDEX('Direct Install - Unit Matrix'!$C$19:$C$38,SMALL(IF('Direct Install - Unit Matrix'!$D$19:$D$38<>"",ROW('Direct Install - Unit Matrix'!$C$19:$C$38)-ROW('Direct Install - Unit Matrix'!C$19)+1),ROWS('Direct Install - Unit Matrix'!C$19:C32))),"") -> 
C25: =IFERROR(INDEX('Direct Install - Unit Matrix'!$C$19:$C$38,SMALL(IF('Direct Install - Unit Matrix'!$D$19:$D$38<>"",ROW('Direct Install - Unit Matrix'!$C$19:$C$38)-ROW('Direct Install - Unit Matrix'!C$19)+1),ROWS('Direct Install - Unit Matrix'!C$19:C33))),"") -> 

Sheet Low Flow DHW (hidden)
E3: ='Step 1 - Project Info'!$C$3&" - "&'Step 1 - Project Info'!$C$7 -> -
E6: WATER MEASURES | F6: Quantity | G6: Cost per Measure | H6: Total Cost | J6: MR Pricing | K6: IE Pricing
E7: Hand Held Showerhead | F7: 0 | G7: =IF(D6="Market Rate",J7,IF(D6="Income Eligible",K7,0)) -> 0 | H7: =G7*F7 -> 0 | J7: 16.08 | K7: 15.84
A8: Flip & Swivel Aerator | E8: Install Low-Flow Showerhead | F8: 0 | G8: =IF(D6="Market Rate",J8,IF(D6="Income Eligible",K8,0)) -> 0 | H8: =G8*F8 -> 0 | J8: 8.47 | K8: 8.21
A9: Hand Held Showerhead | E9: Install Low- Flow Aerator | F9: 0 | G9: =IF(D6="Market Rate",J9,IF(D6="Income Eligible",K9,0)) -> 0 | H9: =G9*F9 -> 0 | J9: 3.51 | K9: 4.18
A10: Install Low- Flow Aerator | E10: Flip & Swivel Aerator | F10: 0 | G10: =IF(D6="Market Rate",J10,IF(D6="Income Eligible",K10,0)) -> 0 | H10: =G10*F10 -> 0 | J10: 5.2 | K10: 5.18
A11: Install Low-Flow Showerhead | G11: Total Cost | H11: =SUM(H7:H10) -> 0
C16: Sample Unit # | D16: Existing Kitchen Sink GPM | E16: Bathroom Sink GPM | F16: Bathroom Shower GPM | G16: =E9 -> Install Low- Flow Aerator | H16: =E10 -> Flip & Swivel Aerator | I16: =E8 -> Install Low-Flow Showerhead | J16: =E7 -> Hand Held Showerhead | K16: NOTES
C17: =IFERROR(INDEX('Direct Install - Unit Matrix'!$C$19:$C$38,SMALL(IF('Direct Install - Unit Matrix'!$F$19:$F$38<>"",ROW('Direct Install - Unit Matrix'!$C$19:$C$38)-ROW('Direct Install - Unit Matrix'!C$19)+1),ROWS('Direct Install - Unit Matrix'!C$19:C19))),"") -> 
C18: =IFERROR(INDEX('Direct Install - Unit Matrix'!$C$19:$C$38,SMALL(IF('Direct Install - Unit Matrix'!$F$19:$F$38<>"",ROW('Direct Install - Unit Matrix'!$C$19:$C$38)-ROW('Direct Install - Unit Matrix'!C$19)+1),ROWS('Direct Install - Unit Matrix'!C$19:C20))),"") -> 
C19: =IFERROR(INDEX('Direct Install - Unit Matrix'!$C$19:$C$38,SMALL(IF('Direct Install - Unit Matrix'!$F$19:$F$38<>"",ROW('Direct Install - Unit Matrix'!$C$19:$C$38)-ROW('Direct Install - Unit Matrix'!C$19)+1),ROWS('Direct Install - Unit Matrix'!C$19:C21))),"") -> 
C20: =IFERROR(INDEX('Direct Install - Unit Matrix'!$C$19:$C$38,SMALL(IF('Direct Install - Unit Matrix'!$F$19:$F$38<>"",ROW('Direct Install - Unit Matrix'!$C$19:$C$38)-ROW('Direct Install - Unit Matrix'!C$19)+1),ROWS('Direct Install - Unit Matrix'!C$19:C22))),"") -> 
C21: =IFERROR(INDEX('Direct Install - Unit Matrix'!$C$19:$C$38,SMALL(IF('Direct Install - Unit Matrix'!$F$19:$F$38<>"",ROW('Direct Install - Unit Matrix'!$C$19:$C$38)-ROW('Direct Install - Unit Matrix'!C$19)+1),ROWS('Direct Install - Unit Matrix'!C$19:C23))),"") -> 
C22: =IFERROR(INDEX('Direct Install - Unit Matrix'!$C$19:$C$38,SMALL(IF('Direct Install - Unit Matrix'!$F$19:$F$38<>"",ROW('Direct Install - Unit Matrix'!$C$19:$C$38)-ROW('Direct Install - Unit Matrix'!C$19)+1),ROWS('Direct Install - Unit Matrix'!C$19:C24))),"") -> 
C23: =IFERROR(INDEX('Direct Install - Unit Matrix'!$C$19:$C$38,SMALL(IF('Direct Install - Unit Matrix'!$F$19:$F$38<>"",ROW('Direct Install - Unit Matrix'!$C$19:$C$38)-ROW('Direct Install - Unit Matrix'!C$19)+1),ROWS('Direct Install - Unit Matrix'!C$19:C25))),"") -> 
C24: =IFERROR(INDEX('Direct Install - Unit Matrix'!$C$19:$C$38,SMALL(IF('Direct Install - Unit Matrix'!$F$19:$F$38<>"",ROW('Direct Install - Unit Matrix'!$C$19:$C$38)-ROW('Direct Install - Unit Matrix'!C$19)+1),ROWS('Direct Install - Unit Matrix'!C$19:C26))),"") -> 
C25: =IFERROR(INDEX('Direct Install - Unit Matrix'!$C$19:$C$38,SMALL(IF('Direct Install - Unit Matrix'!$F$19:$F$38<>"",ROW('Direct Install - Unit Matrix'!$C$19:$C$38)-ROW('Direct Install - Unit Matrix'!C$19)+1),ROWS('Direct Install - Unit Matrix'!C$19:C27))),"") -> 
C26: =IFERROR(INDEX('Direct Install - Unit Matrix'!$C$19:$C$38,SMALL(IF('Direct Install - Unit Matrix'!$F$19:$F$38<>"",ROW('Direct Install - Unit Matrix'!$C$19:$C$38)-ROW('Direct Install - Unit Matrix'!C$19)+1),ROWS('Direct Install - Unit Matrix'!C$19:C28))),"") -> 
C27: =IFERROR(INDEX('Direct Install - Unit Matrix'!$C$19:$C$38,SMALL(IF('Direct Install - Unit Matrix'!$F$19:$F$38<>"",ROW('Direct Install - Unit Matrix'!$C$19:$C$38)-ROW('Direct Install - Unit Matrix'!C$19)+1),ROWS('Direct Install - Unit Matrix'!C$19:C29))),"") -> 
C28: =IFERROR(INDEX('Direct Install - Unit Matrix'!$C$19:$C$38,SMALL(IF('Direct Install - Unit Matrix'!$F$19:$F$38<>"",ROW('Direct Install - Unit Matrix'!$C$19:$C$38)-ROW('Direct Install - Unit Matrix'!C$19)+1),ROWS('Direct Install - Unit Matrix'!C$19:C30))),"") -> 
C29: =IFERROR(INDEX('Direct Install - Unit Matrix'!$C$19:$C$38,SMALL(IF('Direct Install - Unit Matrix'!$F$19:$F$38<>"",ROW('Direct Install - Unit Matrix'!$C$19:$C$38)-ROW('Direct Install - Unit Matrix'!C$19)+1),ROWS('Direct Install - Unit Matrix'!C$19:C31))),"") -> 
C30: =IFERROR(INDEX('Direct Install - Unit Matrix'!$C$19:$C$38,SMALL(IF('Direct Install - Unit Matrix'!$F$19:$F$38<>"",ROW('Direct Install - Unit Matrix'!$C$19:$C$38)-ROW('Direct Install - Unit Matrix'!C$19)+1),ROWS('Direct Install - Unit Matrix'!C$19:C32))),"") -> 
C31: =IFERROR(INDEX('Direct Install - Unit Matrix'!$C$19:$C$38,SMALL(IF('Direct Install - Unit Matrix'!$F$19:$F$38<>"",ROW('Direct Install - Unit Matrix'!$C$19:$C$38)-ROW('Direct Install - Unit Matrix'!C$19)+1),ROWS('Direct Install - Unit Matrix'!C$19:C33))),"") -> 
C32: =IFERROR(INDEX('Direct Install - Unit Matrix'!$C$19:$C$38,SMALL(IF('Direct Install - Unit Matrix'!$F$19:$F$38<>"",ROW('Direct Install - Unit Matrix'!$C$19:$C$38)-ROW('Direct Install - Unit Matrix'!C$19)+1),ROWS('Direct Install - Unit Matrix'!C$19:C34))),"") -> 
C33: =IFERROR(INDEX('Direct Install - Unit Matrix'!$C$19:$C$38,SMALL(IF('Direct Install - Unit Matrix'!$F$19:$F$38<>"",ROW('Direct Install - Unit Matrix'!$C$19:$C$38)-ROW('Direct Install - Unit Matrix'!C$19)+1),ROWS('Direct Install - Unit Matrix'!C$19:C35))),"") -> 
C34: =IFERROR(INDEX('Direct Install - Unit Matrix'!$C$19:$C$38,SMALL(IF('Direct Install - Unit Matrix'!$F$19:$F$38<>"",ROW('Direct Install - Unit Matrix'!$C$19:$C$38)-ROW('Direct Install - Unit Matrix'!C$19)+1),ROWS('Direct Install - Unit Matrix'!C$19:C36))),"") -> 

Sheet Dwelling Unit Lighting (hidden)
C2: Date | D2: =TODAY() -> 2022-06-17 | H2: Company and Auditor Name | O2: Total Units by Type | P2: Quantity
C3: Site Name | D3: ='Step 1 - Project Info'!C3 -> 0 | O3: Efficiency/ Studio | P3: ='Direct Install - Unit Matrix'!B11 -> 0
C4: Site Address | D4: =CONCATENATE('Step 1 - Project Info'!C4," ",'Step 1 - Project Info'!C5," ",'Step 1 - Project Info'!C7) ->  | H4: Apartment Number | O4: 1 Bedrooms | P4: ='Direct Install - Unit Matrix'!B12 -> 0
C5: Building Number | H5: # of Bedrooms | O5: 2 Bedrooms | P5: ='Direct Install - Unit Matrix'!B13 -> 0
C6: See notes below | O6: 3 Bedrooms | P6: ='Direct Install - Unit Matrix'!B14 -> 0
O7: 4 Bedrooms | P7: ='Direct Install - Unit Matrix'!B15 -> 0
C8: Sample Unit # | D8: Room Location | E8: Existing Lamp Type | F8: Existing Lamp Wattage | G8: Existing Lamp Quantity | H8: Existing Fixture Type | I8: Existing Fixture Quantity | J8: Existing Fixture Wattage | K8: Proposed Lighting Measure | L8: Proposed Fixture Type | M8: Proposed Fixture Quantity | N8: Proposed Fixture Wattage | O8: Recommendation (Brand/Model Number): | P8: Comments/Notes: | Q8: Estimated Quantity Needed | U8: Table of Estimated Fixtures and Bulbs | V8: Number of Bulbs
D9: Unit type and Unit number | U9: Recessed | V9: =SUMIF($L$11:$L$176,U9,$Q$11:$Q$159) -> 0
D10: Example | U10: Drum | V10: 0
A11: IF('Core Services - Unit Matrix'!$C$12="",IF('Core Services - Unit Matrix'!$C$13="",IF('Core Services - Unit Matrix'!$C$14="",'Core Services - Unit Matrix'!$C$12"") | B11: Example | C11: =IFERROR(INDEX('Direct Install - Unit Matrix'!$C$19:$C$38,SMALL(IF('Direct Install - Unit Matrix'!$G$19:$G$38<>"",ROW('Direct Install - Unit Matrix'!$C$19:$C$38)-ROW('Direct Install - Unit Matrix'!C$19)+1),ROWS('Direct Install - Unit Matrix'!C$19:C19))),"") ->  | D11: Bedroom | E11: CFL | F11: 13 | G11: 2 | H11: Drum | I11: 1 | J11: 28 | K11: New fixture | L11: Floor Lamp | M11: 5 | N11: 10 | Q11: =IFERROR(IF(C11<>"",(M11/COUNTA('Direct Install - Unit Matrix'!$G$19:$G$38))*'Step 1 - Project Info'!$C$36,""),"") ->  | U11: Wrap | V11: 0
B12: Example | C12: =IFERROR(INDEX('Direct Install - Unit Matrix'!$C$19:$C$38,SMALL(IF('Direct Install - Unit Matrix'!$G$19:$G$38<>"",ROW('Direct Install - Unit Matrix'!$C$19:$C$38)-ROW('Direct Install - Unit Matrix'!C$19)+1),ROWS('Direct Install - Unit Matrix'!C$19:C19))),"") ->  | D12: Hallway | E12: Inc | F12: 60 | G12: 2 | H12: Drum | I12: 1 | J12: 120 | K12: New fixture | L12: Drum | M12: 2 | N12: 10 | Q12: =IFERROR(IF(C12<>"",(M12/COUNTA('Direct Install - Unit Matrix'!$G$19:$G$38))*'Step 1 - Project Info'!$C$36,""),"") ->  | U12: Troffer | V12: 0
B13: Example | C13: =IFERROR(INDEX('Direct Install - Unit Matrix'!$C$19:$C$38,SMALL(IF('Direct Install - Unit Matrix'!$G$19:$G$38<>"",ROW('Direct Install - Unit Matrix'!$C$19:$C$38)-ROW('Direct Install - Unit Matrix'!C$19)+1),ROWS('Direct Install - Unit Matrix'!C$19:C19))),"") ->  | D13: Living Room | E13: CFL | F13: 13 | G13: 2 | H13: Drum | I13: 1 | J13: 28 | K13: New fixture | L13: Drum | M13: 5 | N13: 10 | Q13: =IFERROR(IF(C13<>"",(M13/COUNTA('Direct Install - Unit Matrix'!$G$19:$G$38))*'Step 1 - Project Info'!$C$36,""),"") ->  | U13: Sconce | V13: 0
B14: Example | C14: =IFERROR(INDEX('Direct Install - Unit Matrix'!$C$19:$C$38,SMALL(IF('Direct Install - Unit Matrix'!$G$19:$G$38<>"",ROW('Direct Install - Unit Matrix'!$C$19:$C$38)-ROW('Direct Install - Unit Matrix'!C$19)+1),ROWS('Direct Install - Unit Matrix'!C$19:C19))),"") ->  | D14: Living Room | E14: Inc | F14: 60 | G14: 2 | H14: Table Lamp | I14: 2 | J14: 120 | K14: Screw-in bulb | L14: Jelly Jar | M14: 4 | N14: 10 | Q14: =IFERROR(IF(C14<>"",(M14/COUNTA('Direct Install - Unit Matrix'!$G$19:$G$38))*'Step 1 - Project Info'!$C$36,""),"") ->  | U14: Jelly Jar | V14: 0
Q15: =IFERROR(IF(C15<>"",(M15/COUNTA('Direct Install - Unit Matrix'!$G$19:$G$38))*'Step 1 - Project Info'!$C$36,""),"") ->  | U15: Square | V15: 0
Q16: =IFERROR(IF(C16<>"",(M16/COUNTA('Direct Install - Unit Matrix'!$G$19:$G$38))*'Step 1 - Project Info'!$C$36,""),"") ->  | U16: Cloud | V16: 0
Q17: =IFERROR(IF(C17<>"",(M17/COUNTA('Direct Install - Unit Matrix'!$G$19:$G$38))*'Step 1 - Project Info'!$C$36,""),"") ->  | U17: Strip | V17: 0
Q18: =IFERROR(IF(C18<>"",(M18/COUNTA('Direct Install - Unit Matrix'!$G$19:$G$38))*'Step 1 - Project Info'!$C$36,""),"") ->  | U18: Vanity | V18: 0
Q19: =IFERROR(IF(C19<>"",(M19/COUNTA('Direct Install - Unit Matrix'!$G$19:$G$38))*'Step 1 - Project Info'!$C$36,""),"") ->  | U19: Table Lamp | V19: 0
Q20: =IFERROR(IF(C20<>"",(M20/COUNTA('Direct Install - Unit Matrix'!$G$19:$G$38))*'Step 1 - Project Info'!$C$36,""),"") ->  | U20: Floor Lamp | V20: 0
Q21: =IFERROR(IF(C21<>"",(M21/COUNTA('Direct Install - Unit Matrix'!$G$19:$G$38))*'Step 1 - Project Info'!$C$36,""),"") ->  | U21: Keyless | V21: 0
Q22: =IFERROR(IF(C22<>"",(M22/COUNTA('Direct Install - Unit Matrix'!$G$19:$G$38))*'Step 1 - Project Info'!$C$36,""),"") ->  | U22: Wallpack | V22: 0
Q23: =IFERROR(IF(C23<>"",(M23/COUNTA('Direct Install - Unit Matrix'!$G$19:$G$38))*'Step 1 - Project Info'!$C$36,""),"") ->  | U23: Bollard | V23: 0
Q24: =IFERROR(IF(C24<>"",(M24/COUNTA('Direct Install - Unit Matrix'!$G$19:$G$38))*'Step 1 - Project Info'!$C$36,""),"") ->  | U24: Flood | V24: 0
Q25: =IFERROR(IF(C25<>"",(M25/COUNTA('Direct Install - Unit Matrix'!$G$19:$G$38))*'Step 1 - Project Info'!$C$36,""),"") ->  | U25: Canopy | V25: 0
Q26: =IFERROR(IF(C26<>"",(M26/COUNTA('Direct Install - Unit Matrix'!$G$19:$G$38))*'Step 1 - Project Info'!$C$36,""),"") ->  | U26: Acorn | V26: 0
Q27: Sum | R27: =SUM(Q11:Q26) -> 0 | U27: Par Flood | V27: 0
B28: Example | C28: =IFERROR(INDEX('Direct Install - Unit Matrix'!$C$19:$C$38,SMALL(IF('Direct Install - Unit Matrix'!$G$19:$G$38<>"",ROW('Direct Install - Unit Matrix'!$C$19:$C$38)-ROW('Direct Install - Unit Matrix'!C$19)+1),ROWS('Direct Install - Unit Matrix'!C$19:C20))),"") ->  | D28: Den/Office | E28: CFL | F28: 120 | G28: 5 | H28: Troffer | I28: 1 | J28: 150 | K28: Screw-in bulb | L28: Troffer | M28: 10 | N28: 10 | Q28: =IFERROR(IF(C28<>"",M28*COUNTA('Direct Install - Unit Matrix'!$G$19:$G$38),""),"") ->  | U28: Shoebox | V28: 0
B29: Example | C29: =IFERROR(INDEX('Direct Install - Unit Matrix'!$C$19:$C$38,SMALL(IF('Direct Install - Unit Matrix'!$G$19:$G$38<>"",ROW('Direct Install - Unit Matrix'!$C$19:$C$38)-ROW('Direct Install - Unit Matrix'!C$19)+1),ROWS('Direct Install - Unit Matrix'!C$19:C20))),"") ->  | D29: Kitchen | E29: Inc | F29: 32 | G29: 3 | H29: Strip | I29: 1 | J29: 96 | K29: New fixture | L29: Drum | M29: 3 | N29: 10 | Q29: =IFERROR(IF(C29<>"",M29*COUNTA('Direct Install - Unit Matrix'!$G$19:$G$38),""),"") ->  | U29: Exit Light | V29: 0
A30: IF(A31=A13,'Core Services - Unit Matrix'!$C$14,IF('Core Services - Unit Matrix'!$G$13<>"Dwelling Unit Lighting",IF('Core Services - Unit Matrix'!$G$14<>"Dwelling Unit Lighting",IF('Core Services - Unit Matrix'!$G$15<>"Dwelling Unit Lighting",IF('Core Services - Unit Matrix'!$G$16<>"Dwelling Unit Lighting",IF('Core Services - Unit Matrix'!$G$17<>"Dwelling Unit Lighting",IF('Core Services - Unit Matrix'!$G$18<>"Dwelling Unit Lighting",IF('Core Services - Unit Matrix'!$G$19<>"Dwelling Unit Lighting",IF('Core Services - Unit Matrix'!$G$20<>"Dwelling Unit Lighting",IF('Core Services - Unit Matrix'!$G$21<>"Dwelling Unit Lighting","",'Core Services - Unit Matrix'!$C$21),'Core Services - Unit Matrix'!$C$20),'Core Services - Unit Matrix'!$C$19),'Core Services - Unit Matrix'!$C$18),'Core Services - Unit Matrix'!$C$17),'Core Services - Unit Matrix'!$C$16),'Core Services - Unit Matrix'!$C$15),'Core Services - Unit Matrix'!$C$14),'Core Services - Unit Matrix'!$C$13)) | C30: =IFERROR(INDEX('Direct Install - Unit Matrix'!$C$19:$C$38,SMALL(IF('Direct Install - Unit Matrix'!$G$19:$G$38<>"",ROW('Direct Install - Unit Matrix'!$C$19:$C$38)-ROW('Direct Install - Unit Matrix'!C$19)+1),ROWS('Direct Install - Unit Matrix'!C$19:C20))),"") ->  | Q30: =IFERROR(IF(C30<>"",M30*COUNTA('Direct Install - Unit Matrix'!$G$19:$G$38),""),"") ->  | U30: Other | V30: 0
C31: =IFERROR(INDEX('Direct Install - Unit Matrix'!$C$19:$C$38,SMALL(IF('Direct Install - Unit Matrix'!$G$19:$G$38<>"",ROW('Direct Install - Unit Matrix'!$C$19:$C$38)-ROW('Direct Install - Unit Matrix'!C$19)+1),ROWS('Direct Install - Unit Matrix'!C$19:C20))),"") ->  | Q31: =IFERROR(IF(C31<>"",M31*COUNTA('Direct Install - Unit Matrix'!$G$19:$G$38),""),"") -> 
C32: =IFERROR(INDEX('Direct Install - Unit Matrix'!$C$19:$C$38,SMALL(IF('Direct Install - Unit Matrix'!$G$19:$G$38<>"",ROW('Direct Install - Unit Matrix'!$C$19:$C$38)-ROW('Direct Install - Unit Matrix'!C$19)+1),ROWS('Direct Install - Unit Matrix'!C$19:C20))),"") ->  | Q32: =IFERROR(IF(C32<>"",M32*COUNTA('Direct Install - Unit Matrix'!$G$19:$G$38),""),"") -> 
C33: =IFERROR(INDEX('Direct Install - Unit Matrix'!$C$19:$C$38,SMALL(IF('Direct Install - Unit Matrix'!$G$19:$G$38<>"",ROW('Direct Install - Unit Matrix'!$C$19:$C$38)-ROW('Direct Install - Unit Matrix'!C$19)+1),ROWS('Direct Install - Unit Matrix'!C$19:C20))),"") ->  | Q33: =IFERROR(IF(C33<>"",M33*COUNTA('Direct Install - Unit Matrix'!$G$19:$G$38),""),"") -> 
C34: =IFERROR(INDEX('Direct Install - Unit Matrix'!$C$19:$C$38,SMALL(IF('Direct Install - Unit Matrix'!$G$19:$G$38<>"",ROW('Direct Install - Unit Matrix'!$C$19:$C$38)-ROW('Direct Install - Unit Matrix'!C$19)+1),ROWS('Direct Install - Unit Matrix'!C$19:C20))),"") ->  | Q34: =IFERROR(IF(C34<>"",M34*COUNTA('Direct Install - Unit Matrix'!$G$19:$G$38),""),"") -> 
C35: =IFERROR(INDEX('Direct Install - Unit Matrix'!$C$19:$C$38,SMALL(IF('Direct Install - Unit Matrix'!$G$19:$G$38<>"",ROW('Direct Install - Unit Matrix'!$C$19:$C$38)-ROW('Direct Install - Unit Matrix'!C$19)+1),ROWS('Direct Install - Unit Matrix'!C$19:C20))),"") ->  | Q35: =IFERROR(IF(C35<>"",M35*COUNTA('Direct Install - Unit Matrix'!$G$19:$G$38),""),"") -> 
C36: =IFERROR(INDEX('Direct Install - Unit Matrix'!$C$19:$C$38,SMALL(IF('Direct Install - Unit Matrix'!$G$19:$G$38<>"",ROW('Direct Install - Unit Matrix'!$C$19:$C$38)-ROW('Direct Install - Unit Matrix'!C$19)+1),ROWS('Direct Install - Unit Matrix'!C$19:C20))),"") ->  | Q36: =IFERROR(IF(C36<>"",M36*COUNTA('Direct Install - Unit Matrix'!$G$19:$G$38),""),"") -> 
C37: =IFERROR(INDEX('Direct Install - Unit Matrix'!$C$19:$C$38,SMALL(IF('Direct Install - Unit Matrix'!$G$19:$G$38<>"",ROW('Direct Install - Unit Matrix'!$C$19:$C$38)-ROW('Direct Install - Unit Matrix'!C$19)+1),ROWS('Direct Install - Unit Matrix'!C$19:C20))),"") ->  | Q37: =IFERROR(IF(C37<>"",M37*COUNTA('Direct Install - Unit Matrix'!$G$19:$G$38),""),"") -> 
C38: =IFERROR(INDEX('Direct Install - Unit Matrix'!$C$19:$C$38,SMALL(IF('Direct Install - Unit Matrix'!$G$19:$G$38<>"",ROW('Direct Install - Unit Matrix'!$C$19:$C$38)-ROW('Direct Install - Unit Matrix'!C$19)+1),ROWS('Direct Install - Unit Matrix'!C$19:C20))),"") ->  | Q38: =IFERROR(IF(C38<>"",M38*COUNTA('Direct Install - Unit Matrix'!$G$19:$G$38),""),"") -> 
C39: =IFERROR(INDEX('Direct Install - Unit Matrix'!$C$19:$C$38,SMALL(IF('Direct Install - Unit Matrix'!$G$19:$G$38<>"",ROW('Direct Install - Unit Matrix'!$C$19:$C$38)-ROW('Direct Install - Unit Matrix'!C$19)+1),ROWS('Direct Install - Unit Matrix'!C$19:C20))),"") ->  | Q39: =IFERROR(IF(C39<>"",M39*COUNTA('Direct Install - Unit Matrix'!$G$19:$G$38),""),"") -> 
C40: =IFERROR(INDEX('Direct Install - Unit Matrix'!$C$19:$C$38,SMALL(IF('Direct Install - Unit Matrix'!$G$19:$G$38<>"",ROW('Direct Install - Unit Matrix'!$C$19:$C$38)-ROW('Direct Install - Unit Matrix'!C$19)+1),ROWS('Direct Install - Unit Matrix'!C$19:C20))),"") ->  | Q40: =IFERROR(IF(C40<>"",M40*COUNTA('Direct Install - Unit Matrix'!$G$19:$G$38),""),"") -> 
C41: =IFERROR(INDEX('Direct Install - Unit Matrix'!$C$19:$C$38,SMALL(IF('Direct Install - Unit Matrix'!$G$19:$G$38<>"",ROW('Direct Install - Unit Matrix'!$C$19:$C$38)-ROW('Direct Install - Unit Matrix'!C$19)+1),ROWS('Direct Install - Unit Matrix'!C$19:C20))),"") ->  | Q41: =IFERROR(IF(C41<>"",M41*COUNTA('Direct Install - Unit Matrix'!$G$19:$G$38),""),"") -> 
C42: =IFERROR(INDEX('Direct Install - Unit Matrix'!$C$19:$C$38,SMALL(IF('Direct Install - Unit Matrix'!$G$19:$G$38<>"",ROW('Direct Install - Unit Matrix'!$C$19:$C$38)-ROW('Direct Install - Unit Matrix'!C$19)+1),ROWS('Direct Install - Unit Matrix'!C$19:C20))),"") ->  | Q42: =IFERROR(IF(C42<>"",M42*COUNTA('Direct Install - Unit Matrix'!$G$19:$G$38),""),"") -> 
C43: =IFERROR(INDEX('Direct Install - Unit Matrix'!$C$19:$C$38,SMALL(IF('Direct Install - Unit Matrix'!$G$19:$G$38<>"",ROW('Direct Install - Unit Matrix'!$C$19:$C$38)-ROW('Direct Install - Unit Matrix'!C$19)+1),ROWS('Direct Install - Unit Matrix'!C$19:C20))),"") ->  | Q43: =IFERROR(IF(C43<>"",M43*COUNTA('Direct Install - Unit Matrix'!$G$19:$G$38),""),"") -> 
Q44: Sum | R44: =SUM(Q28:Q43) -> 0
C45: =IFERROR(INDEX('Direct Install - Unit Matrix'!$C$19:$C$38,SMALL(IF('Direct Install - Unit Matrix'!$G$19:$G$38<>"",ROW('Direct Install - Unit Matrix'!$C$19:$C$38)-ROW('Direct Install - Unit Matrix'!C$19)+1),ROWS('Direct Install - Unit Matrix'!C$19:C21))),"") ->  | Q45: =IFERROR(IF(C45<>"",M45*COUNTA('Direct Install - Unit Matrix'!$G$19:$G$38),""),"") -> 
C46: =IFERROR(INDEX('Direct Install - Unit Matrix'!$C$19:$C$38,SMALL(IF('Direct Install - Unit Matrix'!$G$19:$G$38<>"",ROW('Direct Install - Unit Matrix'!$C$19:$C$38)-ROW('Direct Install - Unit Matrix'!C$19)+1),ROWS('Direct Install - Unit Matrix'!C$19:C21))),"") ->  | Q46: =IFERROR(IF(C46<>"",M46*COUNTA('Direct Install - Unit Matrix'!$G$19:$G$38),""),"") -> 
C47: =IFERROR(INDEX('Direct Install - Unit Matrix'!$C$19:$C$38,SMALL(IF('Direct Install - Unit Matrix'!$G$19:$G$38<>"",ROW('Direct Install - Unit Matrix'!$C$19:$C$38)-ROW('Direct Install - Unit Matrix'!C$19)+1),ROWS('Direct Install - Unit Matrix'!C$19:C21))),"") ->  | Q47: =IFERROR(IF(C47<>"",M47*COUNTA('Direct Install - Unit Matrix'!$G$19:$G$38),""),"") -> 
C48: =IFERROR(INDEX('Direct Install - Unit Matrix'!$C$19:$C$38,SMALL(IF('Direct Install - Unit Matrix'!$G$19:$G$38<>"",ROW('Direct Install - Unit Matrix'!$C$19:$C$38)-ROW('Direct Install - Unit Matrix'!C$19)+1),ROWS('Direct Install - Unit Matrix'!C$19:C21))),"") ->  | Q48: =IFERROR(IF(C48<>"",M48*COUNTA('Direct Install - Unit Matrix'!$G$19:$G$38),""),"") -> 
C49: =IFERROR(INDEX('Direct Install - Unit Matrix'!$C$19:$C$38,SMALL(IF('Direct Install - Unit Matrix'!$G$19:$G$38<>"",ROW('Direct Install - Unit Matrix'!$C$19:$C$38)-ROW('Direct Install - Unit Matrix'!C$19)+1),ROWS('Direct Install - Unit Matrix'!C$19:C21))),"") ->  | Q49: =IFERROR(IF(C49<>"",M49*COUNTA('Direct Install - Unit Matrix'!$G$19:$G$38),""),"") -> 
C50: =IFERROR(INDEX('Direct Install - Unit Matrix'!$C$19:$C$38,SMALL(IF('Direct Install - Unit Matrix'!$G$19:$G$38<>"",ROW('Direct Install - Unit Matrix'!$C$19:$C$38)-ROW('Direct Install - Unit Matrix'!C$19)+1),ROWS('Direct Install - Unit Matrix'!C$19:C21))),"") ->  | Q50: =IFERROR(IF(C50<>"",M50*COUNTA('Direct Install - Unit Matrix'!$G$19:$G$38),""),"") -> 
C51: =IFERROR(INDEX('Direct Install - Unit Matrix'!$C$19:$C$38,SMALL(IF('Direct Install - Unit Matrix'!$G$19:$G$38<>"",ROW('Direct Install - Unit Matrix'!$C$19:$C$38)-ROW('Direct Install - Unit Matrix'!C$19)+1),ROWS('Direct Install - Unit Matrix'!C$19:C21))),"") ->  | Q51: =IFERROR(IF(C51<>"",M51*COUNTA('Direct Install - Unit Matrix'!$G$19:$G$38),""),"") -> 
C52: =IFERROR(INDEX('Direct Install - Unit Matrix'!$C$19:$C$38,SMALL(IF('Direct Install - Unit Matrix'!$G$19:$G$38<>"",ROW('Direct Install - Unit Matrix'!$C$19:$C$38)-ROW('Direct Install - Unit Matrix'!C$19)+1),ROWS('Direct Install - Unit Matrix'!C$19:C21))),"") ->  | Q52: =IFERROR(IF(C52<>"",M52*COUNTA('Direct Install - Unit Matrix'!$G$19:$G$38),""),"") -> 
C53: =IFERROR(INDEX('Direct Install - Unit Matrix'!$C$19:$C$38,SMALL(IF('Direct Install - Unit Matrix'!$G$19:$G$38<>"",ROW('Direct Install - Unit Matrix'!$C$19:$C$38)-ROW('Direct Install - Unit Matrix'!C$19)+1),ROWS('Direct Install - Unit Matrix'!C$19:C21))),"") ->  | Q53: =IFERROR(IF(C53<>"",M53*COUNTA('Direct Install - Unit Matrix'!$G$19:$G$38),""),"") -> 
C54: =IFERROR(INDEX('Direct Install - Unit Matrix'!$C$19:$C$38,SMALL(IF('Direct Install - Unit Matrix'!$G$19:$G$38<>"",ROW('Direct Install - Unit Matrix'!$C$19:$C$38)-ROW('Direct Install - Unit Matrix'!C$19)+1),ROWS('Direct Install - Unit Matrix'!C$19:C21))),"") ->  | Q54: =IFERROR(IF(C54<>"",M54*COUNTA('Direct Install - Unit Matrix'!$G$19:$G$38),""),"") -> 
C55: =IFERROR(INDEX('Direct Install - Unit Matrix'!$C$19:$C$38,SMALL(IF('Direct Install - Unit Matrix'!$G$19:$G$38<>"",ROW('Direct Install - Unit Matrix'!$C$19:$C$38)-ROW('Direct Install - Unit Matrix'!C$19)+1),ROWS('Direct Install - Unit Matrix'!C$19:C21))),"") ->  | Q55: =IFERROR(IF(C55<>"",M55*COUNTA('Direct Install - Unit Matrix'!$G$19:$G$38),""),"") -> 
C56: =IFERROR(INDEX('Direct Install - Unit Matrix'!$C$19:$C$38,SMALL(IF('Direct Install - Unit Matrix'!$G$19:$G$38<>"",ROW('Direct Install - Unit Matrix'!$C$19:$C$38)-ROW('Direct Install - Unit Matrix'!C$19)+1),ROWS('Direct Install - Unit Matrix'!C$19:C21))),"") ->  | Q56: =IFERROR(IF(C56<>"",M56*COUNTA('Direct Install - Unit Matrix'!$G$19:$G$38),""),"") -> 
C57: =IFERROR(INDEX('Direct Install - Unit Matrix'!$C$19:$C$38,SMALL(IF('Direct Install - Unit Matrix'!$G$19:$G$38<>"",ROW('Direct Install - Unit Matrix'!$C$19:$C$38)-ROW('Direct Install - Unit Matrix'!C$19)+1),ROWS('Direct Install - Unit Matrix'!C$19:C21))),"") ->  | Q57: =IFERROR(IF(C57<>"",M57*COUNTA('Direct Install - Unit Matrix'!$G$19:$G$38),""),"") -> 
C58: =IFERROR(INDEX('Direct Install - Unit Matrix'!$C$19:$C$38,SMALL(IF('Direct Install - Unit Matrix'!$G$19:$G$38<>"",ROW('Direct Install - Unit Matrix'!$C$19:$C$38)-ROW('Direct Install - Unit Matrix'!C$19)+1),ROWS('Direct Install - Unit Matrix'!C$19:C21))),"") ->  | Q58: =IFERROR(IF(C58<>"",M58*COUNTA('Direct Install - Unit Matrix'!$G$19:$G$38),""),"") -> 
C59: =IFERROR(INDEX('Direct Install - Unit Matrix'!$C$19:$C$38,SMALL(IF('Direct Install - Unit Matrix'!$G$19:$G$38<>"",ROW('Direct Install - Unit Matrix'!$C$19:$C$38)-ROW('Direct Install - Unit Matrix'!C$19)+1),ROWS('Direct Install - Unit Matrix'!C$19:C21))),"") ->  | Q59: =IFERROR(IF(C59<>"",M59*COUNTA('Direct Install - Unit Matrix'!$G$19:$G$38),""),"") -> 
C60: =IFERROR(INDEX('Direct Install - Unit Matrix'!$C$19:$C$38,SMALL(IF('Direct Install - Unit Matrix'!$G$19:$G$38<>"",ROW('Direct Install - Unit Matrix'!$C$19:$C$38)-ROW('Direct Install - Unit Matrix'!C$19)+1),ROWS('Direct Install - Unit Matrix'!C$19:C21))),"") ->  | Q60: =IFERROR(IF(C60<>"",M60*COUNTA('Direct Install - Unit Matrix'!$G$19:$G$38),""),"") -> 
Q61: Sum | R61: =SUM(Q45:Q60) -> 0
C62: =IFERROR(INDEX('Direct Install - Unit Matrix'!$C$19:$C$38,SMALL(IF('Direct Install - Unit Matrix'!$G$19:$G$38<>"",ROW('Direct Install - Unit Matrix'!$C$19:$C$38)-ROW('Direct Install - Unit Matrix'!C$19)+1),ROWS('Direct Install - Unit Matrix'!C$19:$C22))),"") ->  | Q62: =IFERROR(IF(C62<>"",M62*COUNTA('Direct Install - Unit Matrix'!$G$19:$G$38),""),"") -> 
C63: =IFERROR(INDEX('Direct Install - Unit Matrix'!$C$19:$C$38,SMALL(IF('Direct Install - Unit Matrix'!$G$19:$G$38<>"",ROW('Direct Install - Unit Matrix'!$C$19:$C$38)-ROW('Direct Install - Unit Matrix'!C$19)+1),ROWS('Direct Install - Unit Matrix'!C$19:$C22))),"") ->  | Q63: =IFERROR(IF(C63<>"",M63*COUNTA('Direct Install - Unit Matrix'!$G$19:$G$38),""),"") -> 
C64: =IFERROR(INDEX('Direct Install - Unit Matrix'!$C$19:$C$38,SMALL(IF('Direct Install - Unit Matrix'!$G$19:$G$38<>"",ROW('Direct Install - Unit Matrix'!$C$19:$C$38)-ROW('Direct Install - Unit Matrix'!C$19)+1),ROWS('Direct Install - Unit Matrix'!C$19:$C22))),"") ->  | Q64: =IFERROR(IF(C64<>"",M64*COUNTA('Direct Install - Unit Matrix'!$G$19:$G$38),""),"") -> 
C65: =IFERROR(INDEX('Direct Install - Unit Matrix'!$C$19:$C$38,SMALL(IF('Direct Install - Unit Matrix'!$G$19:$G$38<>"",ROW('Direct Install - Unit Matrix'!$C$19:$C$38)-ROW('Direct Install - Unit Matrix'!C$19)+1),ROWS('Direct Install - Unit Matrix'!C$19:$C22))),"") ->  | Q65: =IFERROR(IF(C65<>"",M65*COUNTA('Direct Install - Unit Matrix'!$G$19:$G$38),""),"") -> 
C66: =IFERROR(INDEX('Direct Install - Unit Matrix'!$C$19:$C$38,SMALL(IF('Direct Install - Unit Matrix'!$G$19:$G$38<>"",ROW('Direct Install - Unit Matrix'!$C$19:$C$38)-ROW('Direct Install - Unit Matrix'!C$19)+1),ROWS('Direct Install - Unit Matrix'!C$19:$C22))),"") ->  | Q66: =IFERROR(IF(C66<>"",M66*COUNTA('Direct Install - Unit Matrix'!$G$19:$G$38),""),"") -> 
C67: =IFERROR(INDEX('Direct Install - Unit Matrix'!$C$19:$C$38,SMALL(IF('Direct Install - Unit Matrix'!$G$19:$G$38<>"",ROW('Direct Install - Unit Matrix'!$C$19:$C$38)-ROW('Direct Install - Unit Matrix'!C$19)+1),ROWS('Direct Install - Unit Matrix'!C$19:$C22))),"") ->  | Q67: =IFERROR(IF(C67<>"",M67*COUNTA('Direct Install - Unit Matrix'!$G$19:$G$38),""),"") -> 
C68: =IFERROR(INDEX('Direct Install - Unit Matrix'!$C$19:$C$38,SMALL(IF('Direct Install - Unit Matrix'!$G$19:$G$38<>"",ROW('Direct Install - Unit Matrix'!$C$19:$C$38)-ROW('Direct Install - Unit Matrix'!C$19)+1),ROWS('Direct Install - Unit Matrix'!C$19:$C22))),"") ->  | Q68: =IFERROR(IF(C68<>"",M68*COUNTA('Direct Install - Unit Matrix'!$G$19:$G$38),""),"") -> 
C69: =IFERROR(INDEX('Direct Install - Unit Matrix'!$C$19:$C$38,SMALL(IF('Direct Install - Unit Matrix'!$G$19:$G$38<>"",ROW('Direct Install - Unit Matrix'!$C$19:$C$38)-ROW('Direct Install - Unit Matrix'!C$19)+1),ROWS('Direct Install - Unit Matrix'!C$19:$C22))),"") ->  | Q69: =IFERROR(IF(C69<>"",M69*COUNTA('Direct Install - Unit Matrix'!$G$19:$G$38),""),"") -> 
C70: =IFERROR(INDEX('Direct Install - Unit Matrix'!$C$19:$C$38,SMALL(IF('Direct Install - Unit Matrix'!$G$19:$G$38<>"",ROW('Direct Install - Unit Matrix'!$C$19:$C$38)-ROW('Direct Install - Unit Matrix'!C$19)+1),ROWS('Direct Install - Unit Matrix'!C$19:$C22))),"") ->  | Q70: =IFERROR(IF(C70<>"",M70*COUNTA('Direct Install - Unit Matrix'!$G$19:$G$38),""),"") -> 
C71: =IFERROR(INDEX('Direct Install - Unit Matrix'!$C$19:$C$38,SMALL(IF('Direct Install - Unit Matrix'!$G$19:$G$38<>"",ROW('Direct Install - Unit Matrix'!$C$19:$C$38)-ROW('Direct Install - Unit Matrix'!C$19)+1),ROWS('Direct Install - Unit Matrix'!C$19:$C22))),"") ->  | Q71: =IFERROR(IF(C71<>"",M71*COUNTA('Direct Install - Unit Matrix'!$G$19:$G$38),""),"") -> 
C72: =IFERROR(INDEX('Direct Install - Unit Matrix'!$C$19:$C$38,SMALL(IF('Direct Install - Unit Matrix'!$G$19:$G$38<>"",ROW('Direct Install - Unit Matrix'!$C$19:$C$38)-ROW('Direct Install - Unit Matrix'!C$19)+1),ROWS('Direct Install - Unit Matrix'!C$19:$C22))),"") ->  | Q72: =IFERROR(IF(C72<>"",M72*COUNTA('Direct Install - Unit Matrix'!$G$19:$G$38),""),"") -> 
C73: =IFERROR(INDEX('Direct Install - Unit Matrix'!$C$19:$C$38,SMALL(IF('Direct Install - Unit Matrix'!$G$19:$G$38<>"",ROW('Direct Install - Unit Matrix'!$C$19:$C$38)-ROW('Direct Install - Unit Matrix'!C$19)+1),ROWS('Direct Install - Unit Matrix'!C$19:$C22))),"") ->  | Q73: =IFERROR(IF(C73<>"",M73*COUNTA('Direct Install - Unit Matrix'!$G$19:$G$38),""),"") -> 
C74: =IFERROR(INDEX('Direct Install - Unit Matrix'!$C$19:$C$38,SMALL(IF('Direct Install - Unit Matrix'!$G$19:$G$38<>"",ROW('Direct Install - Unit Matrix'!$C$19:$C$38)-ROW('Direct Install - Unit Matrix'!C$19)+1),ROWS('Direct Install - Unit Matrix'!C$19:$C22))),"") ->  | Q74: =IFERROR(IF(C74<>"",M74*COUNTA('Direct Install - Unit Matrix'!$G$19:$G$38),""),"") -> 
C75: =IFERROR(INDEX('Direct Install - Unit Matrix'!$C$19:$C$38,SMALL(IF('Direct Install - Unit Matrix'!$G$19:$G$38<>"",ROW('Direct Install - Unit Matrix'!$C$19:$C$38)-ROW('Direct Install - Unit Matrix'!C$19)+1),ROWS('Direct Install - Unit Matrix'!C$19:$C22))),"") ->  | Q75: =IFERROR(IF(C75<>"",M75*COUNTA('Direct Install - Unit Matrix'!$G$19:$G$38),""),"") -> 
C76: =IFERROR(INDEX('Direct Install - Unit Matrix'!$C$19:$C$38,SMALL(IF('Direct Install - Unit Matrix'!$G$19:$G$38<>"",ROW('Direct Install - Unit Matrix'!$C$19:$C$38)-ROW('Direct Install - Unit Matrix'!C$19)+1),ROWS('Direct Install - Unit Matrix'!C$19:$C22))),"") ->  | Q76: =IFERROR(IF(C76<>"",M76*COUNTA('Direct Install - Unit Matrix'!$G$19:$G$38),""),"") -> 
Q77: Sum | R77: =SUM(Q61:Q76) -> 0
C78: =IFERROR(INDEX('Direct Install - Unit Matrix'!$C$19:$C$38,SMALL(IF('Direct Install - Unit Matrix'!$G$19:$G$38<>"",ROW('Direct Install - Unit Matrix'!$C$19:$C$38)-ROW('Direct Install - Unit Matrix'!C$19)+1),ROWS('Direct Install - Unit Matrix'!C$19:$C23))),"") ->  | Q78: =IFERROR(IF(C78<>"",M78*COUNTA('Direct Install - Unit Matrix'!$G$19:$G$38),""),"") -> 
C79: =IFERROR(INDEX('Direct Install - Unit Matrix'!$C$19:$C$38,SMALL(IF('Direct Install - Unit Matrix'!$G$19:$G$38<>"",ROW('Direct Install - Unit Matrix'!$C$19:$C$38)-ROW('Direct Install - Unit Matrix'!C$19)+1),ROWS('Direct Install - Unit Matrix'!C$19:$C23))),"") ->  | Q79: =IFERROR(IF(C79<>"",M79*COUNTA('Direct Install - Unit Matrix'!$G$19:$G$38),""),"") -> 
C80: =IFERROR(INDEX('Direct Install - Unit Matrix'!$C$19:$C$38,SMALL(IF('Direct Install - Unit Matrix'!$G$19:$G$38<>"",ROW('Direct Install - Unit Matrix'!$C$19:$C$38)-ROW('Direct Install - Unit Matrix'!C$19)+1),ROWS('Direct Install - Unit Matrix'!C$19:$C23))),"") ->  | Q80: =IFERROR(IF(C80<>"",M80*COUNTA('Direct Install - Unit Matrix'!$G$19:$G$38),""),"") -> 
C81: =IFERROR(INDEX('Direct Install - Unit Matrix'!$C$19:$C$38,SMALL(IF('Direct Install - Unit Matrix'!$G$19:$G$38<>"",ROW('Direct Install - Unit Matrix'!$C$19:$C$38)-ROW('Direct Install - Unit Matrix'!C$19)+1),ROWS('Direct Install - Unit Matrix'!C$19:$C23))),"") ->  | Q81: =IFERROR(IF(C81<>"",M81*COUNTA('Direct Install - Unit Matrix'!$G$19:$G$38),""),"") -> 
C82: =IFERROR(INDEX('Direct Install - Unit Matrix'!$C$19:$C$38,SMALL(IF('Direct Install - Unit Matrix'!$G$19:$G$38<>"",ROW('Direct Install - Unit Matrix'!$C$19:$C$38)-ROW('Direct Install - Unit Matrix'!C$19)+1),ROWS('Direct Install - Unit Matrix'!C$19:$C23))),"") ->  | Q82: =IFERROR(IF(C82<>"",M82*COUNTA('Direct Install - Unit Matrix'!$G$19:$G$38),""),"") -> 
C83: =IFERROR(INDEX('Direct Install - Unit Matrix'!$C$19:$C$38,SMALL(IF('Direct Install - Unit Matrix'!$G$19:$G$38<>"",ROW('Direct Install - Unit Matrix'!$C$19:$C$38)-ROW('Direct Install - Unit Matrix'!C$19)+1),ROWS('Direct Install - Unit Matrix'!C$19:$C23))),"") ->  | Q83: =IFERROR(IF(C83<>"",M83*COUNTA('Direct Install - Unit Matrix'!$G$19:$G$38),""),"") -> 
C84: =IFERROR(INDEX('Direct Install - Unit Matrix'!$C$19:$C$38,SMALL(IF('Direct Install - Unit Matrix'!$G$19:$G$38<>"",ROW('Direct Install - Unit Matrix'!$C$19:$C$38)-ROW('Direct Install - Unit Matrix'!C$19)+1),ROWS('Direct Install - Unit Matrix'!C$19:$C23))),"") ->  | Q84: =IFERROR(IF(C84<>"",M84*COUNTA('Direct Install - Unit Matrix'!$G$19:$G$38),""),"") -> 
C85: =IFERROR(INDEX('Direct Install - Unit Matrix'!$C$19:$C$38,SMALL(IF('Direct Install - Unit Matrix'!$G$19:$G$38<>"",ROW('Direct Install - Unit Matrix'!$C$19:$C$38)-ROW('Direct Install - Unit Matrix'!C$19)+1),ROWS('Direct Install - Unit Matrix'!C$19:$C23))),"") ->  | Q85: =IFERROR(IF(C85<>"",M85*COUNTA('Direct Install - Unit Matrix'!$G$19:$G$38),""),"") -> 
C86: =IFERROR(INDEX('Direct Install - Unit Matrix'!$C$19:$C$38,SMALL(IF('Direct Install - Unit Matrix'!$G$19:$G$38<>"",ROW('Direct Install - Unit Matrix'!$C$19:$C$38)-ROW('Direct Install - Unit Matrix'!C$19)+1),ROWS('Direct Install - Unit Matrix'!C$19:$C23))),"") ->  | Q86: =IFERROR(IF(C86<>"",M86*COUNTA('Direct Install - Unit Matrix'!$G$19:$G$38),""),"") -> 
C87: =IFERROR(INDEX('Direct Install - Unit Matrix'!$C$19:$C$38,SMALL(IF('Direct Install - Unit Matrix'!$G$19:$G$38<>"",ROW('Direct Install - Unit Matrix'!$C$19:$C$38)-ROW('Direct Install - Unit Matrix'!C$19)+1),ROWS('Direct Install - Unit Matrix'!C$19:$C23))),"") ->  | Q87: =IFERROR(IF(C87<>"",M87*COUNTA('Direct Install - Unit Matrix'!$G$19:$G$38),""),"") -> 
C88: =IFERROR(INDEX('Direct Install - Unit Matrix'!$C$19:$C$38,SMALL(IF('Direct Install - Unit Matrix'!$G$19:$G$38<>"",ROW('Direct Install - Unit Matrix'!$C$19:$C$38)-ROW('Direct Install - Unit Matrix'!C$19)+1),ROWS('Direct Install - Unit Matrix'!C$19:$C23))),"") ->  | Q88: =IFERROR(IF(C88<>"",M88*COUNTA('Direct Install - Unit Matrix'!$G$19:$G$38),""),"") -> 
C89: =IFERROR(INDEX('Direct Install - Unit Matrix'!$C$19:$C$38,SMALL(IF('Direct Install - Unit Matrix'!$G$19:$G$38<>"",ROW('Direct Install - Unit Matrix'!$C$19:$C$38)-ROW('Direct Install - Unit Matrix'!C$19)+1),ROWS('Direct Install - Unit Matrix'!C$19:$C23))),"") ->  | Q89: =IFERROR(IF(C89<>"",M89*COUNTA('Direct Install - Unit Matrix'!$G$19:$G$38),""),"") -> 
C90: =IFERROR(INDEX('Direct Install - Unit Matrix'!$C$19:$C$38,SMALL(IF('Direct Install - Unit Matrix'!$G$19:$G$38<>"",ROW('Direct Install - Unit Matrix'!$C$19:$C$38)-ROW('Direct Install - Unit Matrix'!C$19)+1),ROWS('Direct Install - Unit Matrix'!C$19:$C23))),"") ->  | Q90: =IFERROR(IF(C90<>"",M90*COUNTA('Direct Install - Unit Matrix'!$G$19:$G$38),""),"") -> 
C91: =IFERROR(INDEX('Direct Install - Unit Matrix'!$C$19:$C$38,SMALL(IF('Direct Install - Unit Matrix'!$G$19:$G$38<>"",ROW('Direct Install - Unit Matrix'!$C$19:$C$38)-ROW('Direct Install - Unit Matrix'!C$19)+1),ROWS('Direct Install - Unit Matrix'!C$19:$C23))),"") ->  | Q91: =IFERROR(IF(C91<>"",M91*COUNTA('Direct Install - Unit Matrix'!$G$19:$G$38),""),"") -> 
C92: =IFERROR(INDEX('Direct Install - Unit Matrix'!$C$19:$C$38,SMALL(IF('Direct Install - Unit Matrix'!$G$19:$G$38<>"",ROW('Direct Install - Unit Matrix'!$C$19:$C$38)-ROW('Direct Install - Unit Matrix'!C$19)+1),ROWS('Direct Install - Unit Matrix'!C$19:$C23))),"") ->  | Q92: =IFERROR(IF(C92<>"",M92*COUNTA('Direct Install - Unit Matrix'!$G$19:$G$38),""),"") -> 
Q93: Sum | R93: =SUM(Q77:Q92) -> 0
C94: =IFERROR(INDEX('Direct Install - Unit Matrix'!$C$19:$C$38,SMALL(IF('Direct Install - Unit Matrix'!$G$19:$G$38<>"",ROW('Direct Install - Unit Matrix'!$C$19:$C$38)-ROW('Direct Install - Unit Matrix'!C$19)+1),ROWS('Direct Install - Unit Matrix'!C$19:$C24))),"") ->  | Q94: =IFERROR(IF(C94<>"",M94*COUNTA('Direct Install - Unit Matrix'!$G$19:$G$38),""),"") -> 
C95: =IFERROR(INDEX('Direct Install - Unit Matrix'!$C$19:$C$38,SMALL(IF('Direct Install - Unit Matrix'!$G$19:$G$38<>"",ROW('Direct Install - Unit Matrix'!$C$19:$C$38)-ROW('Direct Install - Unit Matrix'!C$19)+1),ROWS('Direct Install - Unit Matrix'!C$19:$C24))),"") ->  | Q95: =IFERROR(IF(C95<>"",M95*COUNTA('Direct Install - Unit Matrix'!$G$19:$G$38),""),"") -> 
C96: =IFERROR(INDEX('Direct Install - Unit Matrix'!$C$19:$C$38,SMALL(IF('Direct Install - Unit Matrix'!$G$19:$G$38<>"",ROW('Direct Install - Unit Matrix'!$C$19:$C$38)-ROW('Direct Install - Unit Matrix'!C$19)+1),ROWS('Direct Install - Unit Matrix'!C$19:$C24))),"") ->  | Q96: =IFERROR(IF(C96<>"",M96*COUNTA('Direct Install - Unit Matrix'!$G$19:$G$38),""),"") -> 
C97: =IFERROR(INDEX('Direct Install - Unit Matrix'!$C$19:$C$38,SMALL(IF('Direct Install - Unit Matrix'!$G$19:$G$38<>"",ROW('Direct Install - Unit Matrix'!$C$19:$C$38)-ROW('Direct Install - Unit Matrix'!C$19)+1),ROWS('Direct Install - Unit Matrix'!C$19:$C24))),"") ->  | Q97: =IFERROR(IF(C97<>"",M97*COUNTA('Direct Install - Unit Matrix'!$G$19:$G$38),""),"") -> 
C98: =IFERROR(INDEX('Direct Install - Unit Matrix'!$C$19:$C$38,SMALL(IF('Direct Install - Unit Matrix'!$G$19:$G$38<>"",ROW('Direct Install - Unit Matrix'!$C$19:$C$38)-ROW('Direct Install - Unit Matrix'!C$19)+1),ROWS('Direct Install - Unit Matrix'!C$19:$C24))),"") ->  | Q98: =IFERROR(IF(C98<>"",M98*COUNTA('Direct Install - Unit Matrix'!$G$19:$G$38),""),"") -> 
C99: =IFERROR(INDEX('Direct Install - Unit Matrix'!$C$19:$C$38,SMALL(IF('Direct Install - Unit Matrix'!$G$19:$G$38<>"",ROW('Direct Install - Unit Matrix'!$C$19:$C$38)-ROW('Direct Install - Unit Matrix'!C$19)+1),ROWS('Direct Install - Unit Matrix'!C$19:$C24))),"") ->  | Q99: =IFERROR(IF(C99<>"",M99*COUNTA('Direct Install - Unit Matrix'!$G$19:$G$38),""),"") -> 
C100: =IFERROR(INDEX('Direct Install - Unit Matrix'!$C$19:$C$38,SMALL(IF('Direct Install - Unit Matrix'!$G$19:$G$38<>"",ROW('Direct Install - Unit Matrix'!$C$19:$C$38)-ROW('Direct Install - Unit Matrix'!C$19)+1),ROWS('Direct Install - Unit Matrix'!C$19:$C24))),"") ->  | Q100: =IFERROR(IF(C100<>"",M100*COUNTA('Direct Install - Unit Matrix'!$G$19:$G$38),""),"") -> 
C101: =IFERROR(INDEX('Direct Install - Unit Matrix'!$C$19:$C$38,SMALL(IF('Direct Install - Unit Matrix'!$G$19:$G$38<>"",ROW('Direct Install - Unit Matrix'!$C$19:$C$38)-ROW('Direct Install - Unit Matrix'!C$19)+1),ROWS('Direct Install - Unit Matrix'!C$19:$C24))),"") ->  | Q101: =IFERROR(IF(C101<>"",M101*COUNTA('Direct Install - Unit Matrix'!$G$19:$G$38),""),"") -> 
C102: =IFERROR(INDEX('Direct Install - Unit Matrix'!$C$19:$C$38,SMALL(IF('Direct Install - Unit Matrix'!$G$19:$G$38<>"",ROW('Direct Install - Unit Matrix'!$C$19:$C$38)-ROW('Direct Install - Unit Matrix'!C$19)+1),ROWS('Direct Install - Unit Matrix'!C$19:$C24))),"") ->  | Q102: =IFERROR(IF(C102<>"",M102*COUNTA('Direct Install - Unit Matrix'!$G$19:$G$38),""),"") -> 
C103: =IFERROR(INDEX('Direct Install - Unit Matrix'!$C$19:$C$38,SMALL(IF('Direct Install - Unit Matrix'!$G$19:$G$38<>"",ROW('Direct Install - Unit Matrix'!$C$19:$C$38)-ROW('Direct Install - Unit Matrix'!C$19)+1),ROWS('Direct Install - Unit Matrix'!C$19:$C24))),"") ->  | Q103: =IFERROR(IF(C103<>"",M103*COUNTA('Direct Install - Unit Matrix'!$G$19:$G$38),""),"") -> 
C104: =IFERROR(INDEX('Direct Install - Unit Matrix'!$C$19:$C$38,SMALL(IF('Direct Install - Unit Matrix'!$G$19:$G$38<>"",ROW('Direct Install - Unit Matrix'!$C$19:$C$38)-ROW('Direct Install - Unit Matrix'!C$19)+1),ROWS('Direct Install - Unit Matrix'!C$19:$C24))),"") ->  | Q104: =IFERROR(IF(C104<>"",M104*COUNTA('Direct Install - Unit Matrix'!$G$19:$G$38),""),"") -> 
C105: =IFERROR(INDEX('Direct Install - Unit Matrix'!$C$19:$C$38,SMALL(IF('Direct Install - Unit Matrix'!$G$19:$G$38<>"",ROW('Direct Install - Unit Matrix'!$C$19:$C$38)-ROW('Direct Install - Unit Matrix'!C$19)+1),ROWS('Direct Install - Unit Matrix'!C$19:$C24))),"") ->  | Q105: =IFERROR(IF(C105<>"",M105*COUNTA('Direct Install - Unit Matrix'!$G$19:$G$38),""),"") -> 
C106: =IFERROR(INDEX('Direct Install - Unit Matrix'!$C$19:$C$38,SMALL(IF('Direct Install - Unit Matrix'!$G$19:$G$38<>"",ROW('Direct Install - Unit Matrix'!$C$19:$C$38)-ROW('Direct Install - Unit Matrix'!C$19)+1),ROWS('Direct Install - Unit Matrix'!C$19:$C24))),"") ->  | Q106: =IFERROR(IF(C106<>"",M106*COUNTA('Direct Install - Unit Matrix'!$G$19:$G$38),""),"") -> 
C107: =IFERROR(INDEX('Direct Install - Unit Matrix'!$C$19:$C$38,SMALL(IF('Direct Install - Unit Matrix'!$G$19:$G$38<>"",ROW('Direct Install - Unit Matrix'!$C$19:$C$38)-ROW('Direct Install - Unit Matrix'!C$19)+1),ROWS('Direct Install - Unit Matrix'!C$19:$C24))),"") ->  | Q107: =IFERROR(IF(C107<>"",M107*COUNTA('Direct Install - Unit Matrix'!$G$19:$G$38),""),"") -> 
C108: =IFERROR(INDEX('Direct Install - Unit Matrix'!$C$19:$C$38,SMALL(IF('Direct Install - Unit Matrix'!$G$19:$G$38<>"",ROW('Direct Install - Unit Matrix'!$C$19:$C$38)-ROW('Direct Install - Unit Matrix'!C$19)+1),ROWS('Direct Install - Unit Matrix'!C$19:$C24))),"") ->  | Q108: =IFERROR(IF(C108<>"",M108*COUNTA('Direct Install - Unit Matrix'!$G$19:$G$38),""),"") -> 
Q109: Sum | R109: =SUM(Q93:Q108) -> 0
C110: =IFERROR(INDEX('Direct Install - Unit Matrix'!$C$19:$C$38,SMALL(IF('Direct Install - Unit Matrix'!$G$19:$G$38<>"",ROW('Direct Install - Unit Matrix'!$C$19:$C$38)-ROW('Direct Install - Unit Matrix'!C$19)+1),ROWS('Direct Install - Unit Matrix'!C$19:$C25))),"") ->  | Q110: =IFERROR(IF(C110<>"",M110*COUNTA('Direct Install - Unit Matrix'!$G$19:$G$38),""),"") -> 
C111: =IFERROR(INDEX('Direct Install - Unit Matrix'!$C$19:$C$38,SMALL(IF('Direct Install - Unit Matrix'!$G$19:$G$38<>"",ROW('Direct Install - Unit Matrix'!$C$19:$C$38)-ROW('Direct Install - Unit Matrix'!C$19)+1),ROWS('Direct Install - Unit Matrix'!C$19:$C25))),"") ->  | Q111: =IFERROR(IF(C111<>"",M111*COUNTA('Direct Install - Unit Matrix'!$G$19:$G$38),""),"") -> 
C112: =IFERROR(INDEX('Direct Install - Unit Matrix'!$C$19:$C$38,SMALL(IF('Direct Install - Unit Matrix'!$G$19:$G$38<>"",ROW('Direct Install - Unit Matrix'!$C$19:$C$38)-ROW('Direct Install - Unit Matrix'!C$19)+1),ROWS('Direct Install - Unit Matrix'!C$19:$C25))),"") ->  | Q112: =IFERROR(IF(C112<>"",M112*COUNTA('Direct Install - Unit Matrix'!$G$19:$G$38),""),"") -> 
C113: =IFERROR(INDEX('Direct Install - Unit Matrix'!$C$19:$C$38,SMALL(IF('Direct Install - Unit Matrix'!$G$19:$G$38<>"",ROW('Direct Install - Unit Matrix'!$C$19:$C$38)-ROW('Direct Install - Unit Matrix'!C$19)+1),ROWS('Direct Install - Unit Matrix'!C$19:$C25))),"") ->  | Q113: =IFERROR(IF(C113<>"",M113*COUNTA('Direct Install - Unit Matrix'!$G$19:$G$38),""),"") -> 
C114: =IFERROR(INDEX('Direct Install - Unit Matrix'!$C$19:$C$38,SMALL(IF('Direct Install - Unit Matrix'!$G$19:$G$38<>"",ROW('Direct Install - Unit Matrix'!$C$19:$C$38)-ROW('Direct Install - Unit Matrix'!C$19)+1),ROWS('Direct Install - Unit Matrix'!C$19:$C25))),"") ->  | Q114: =IFERROR(IF(C114<>"",M114*COUNTA('Direct Install - Unit Matrix'!$G$19:$G$38),""),"") -> 
C115: =IFERROR(INDEX('Direct Install - Unit Matrix'!$C$19:$C$38,SMALL(IF('Direct Install - Unit Matrix'!$G$19:$G$38<>"",ROW('Direct Install - Unit Matrix'!$C$19:$C$38)-ROW('Direct Install - Unit Matrix'!C$19)+1),ROWS('Direct Install - Unit Matrix'!C$19:$C25))),"") ->  | Q115: =IFERROR(IF(C115<>"",M115*COUNTA('Direct Install - Unit Matrix'!$G$19:$G$38),""),"") -> 
C116: =IFERROR(INDEX('Direct Install - Unit Matrix'!$C$19:$C$38,SMALL(IF('Direct Install - Unit Matrix'!$G$19:$G$38<>"",ROW('Direct Install - Unit Matrix'!$C$19:$C$38)-ROW('Direct Install - Unit Matrix'!C$19)+1),ROWS('Direct Install - Unit Matrix'!C$19:$C25))),"") ->  | Q116: =IFERROR(IF(C116<>"",M116*COUNTA('Direct Install - Unit Matrix'!$G$19:$G$38),""),"") -> 
C117: =IFERROR(INDEX('Direct Install - Unit Matrix'!$C$19:$C$38,SMALL(IF('Direct Install - Unit Matrix'!$G$19:$G$38<>"",ROW('Direct Install - Unit Matrix'!$C$19:$C$38)-ROW('Direct Install - Unit Matrix'!C$19)+1),ROWS('Direct Install - Unit Matrix'!C$19:$C25))),"") ->  | Q117: =IFERROR(IF(C117<>"",M117*COUNTA('Direct Install - Unit Matrix'!$G$19:$G$38),""),"") -> 
C118: =IFERROR(INDEX('Direct Install - Unit Matrix'!$C$19:$C$38,SMALL(IF('Direct Install - Unit Matrix'!$G$19:$G$38<>"",ROW('Direct Install - Unit Matrix'!$C$19:$C$38)-ROW('Direct Install - Unit Matrix'!C$19)+1),ROWS('Direct Install - Unit Matrix'!C$19:$C25))),"") ->  | Q118: =IFERROR(IF(C118<>"",M118*COUNTA('Direct Install - Unit Matrix'!$G$19:$G$38),""),"") -> 
C119: =IFERROR(INDEX('Direct Install - Unit Matrix'!$C$19:$C$38,SMALL(IF('Direct Install - Unit Matrix'!$G$19:$G$38<>"",ROW('Direct Install - Unit Matrix'!$C$19:$C$38)-ROW('Direct Install - Unit Matrix'!C$19)+1),ROWS('Direct Install - Unit Matrix'!C$19:$C25))),"") ->  | Q119: =IFERROR(IF(C119<>"",M119*COUNTA('Direct Install - Unit Matrix'!$G$19:$G$38),""),"") -> 
C120: =IFERROR(INDEX('Direct Install - Unit Matrix'!$C$19:$C$38,SMALL(IF('Direct Install - Unit Matrix'!$G$19:$G$38<>"",ROW('Direct Install - Unit Matrix'!$C$19:$C$38)-ROW('Direct Install - Unit Matrix'!C$19)+1),ROWS('Direct Install - Unit Matrix'!C$19:$C25))),"") ->  | Q120: =IFERROR(IF(C120<>"",M120*COUNTA('Direct Install - Unit Matrix'!$G$19:$G$38),""),"") -> 
C121: =IFERROR(INDEX('Direct Install - Unit Matrix'!$C$19:$C$38,SMALL(IF('Direct Install - Unit Matrix'!$G$19:$G$38<>"",ROW('Direct Install - Unit Matrix'!$C$19:$C$38)-ROW('Direct Install - Unit Matrix'!C$19)+1),ROWS('Direct Install - Unit Matrix'!C$19:$C25))),"") ->  | Q121: =IFERROR(IF(C121<>"",M121*COUNTA('Direct Install - Unit Matrix'!$G$19:$G$38),""),"") -> 
C122: =IFERROR(INDEX('Direct Install - Unit Matrix'!$C$19:$C$38,SMALL(IF('Direct Install - Unit Matrix'!$G$19:$G$38<>"",ROW('Direct Install - Unit Matrix'!$C$19:$C$38)-ROW('Direct Install - Unit Matrix'!C$19)+1),ROWS('Direct Install - Unit Matrix'!C$19:$C25))),"") ->  | Q122: =IFERROR(IF(C122<>"",M122*COUNTA('Direct Install - Unit Matrix'!$G$19:$G$38),""),"") -> 
C123: =IFERROR(INDEX('Direct Install - Unit Matrix'!$C$19:$C$38,SMALL(IF('Direct Install - Unit Matrix'!$G$19:$G$38<>"",ROW('Direct Install - Unit Matrix'!$C$19:$C$38)-ROW('Direct Install - Unit Matrix'!C$19)+1),ROWS('Direct Install - Unit Matrix'!C$19:$C25))),"") ->  | Q123: =IFERROR(IF(C123<>"",M123*COUNTA('Direct Install - Unit Matrix'!$G$19:$G$38),""),"") -> 
C124: =IFERROR(INDEX('Direct Install - Unit Matrix'!$C$19:$C$38,SMALL(IF('Direct Install - Unit Matrix'!$G$19:$G$38<>"",ROW('Direct Install - Unit Matrix'!$C$19:$C$38)-ROW('Direct Install - Unit Matrix'!C$19)+1),ROWS('Direct Install - Unit Matrix'!C$19:$C25))),"") ->  | Q124: =IFERROR(IF(C124<>"",M124*COUNTA('Direct Install - Unit Matrix'!$G$19:$G$38),""),"") -> 
C125: =IFERROR(INDEX('Direct Install - Unit Matrix'!$C$19:$C$38,SMALL(IF('Direct Install - Unit Matrix'!$G$19:$G$38<>"",ROW('Direct Install - Unit Matrix'!$C$19:$C$38)-ROW('Direct Install - Unit Matrix'!C$19)+1),ROWS('Direct Install - Unit Matrix'!C$19:$C25))),"") ->  | Q125: =IFERROR(IF(C125<>"",M125*COUNTA('Direct Install - Unit Matrix'!$G$19:$G$38),""),"") -> 
Q126: Sum | R126: =SUM(Q110:Q125) -> 0
C127: =IFERROR(INDEX('Direct Install - Unit Matrix'!$C$19:$C$38,SMALL(IF('Direct Install - Unit Matrix'!$G$19:$G$38<>"",ROW('Direct Install - Unit Matrix'!$C$19:$C$38)-ROW('Direct Install - Unit Matrix'!C$19)+1),ROWS('Direct Install - Unit Matrix'!C$19:$C26))),"") ->  | Q127: =IFERROR(IF(C127<>"",M127*COUNTA('Direct Install - Unit Matrix'!$G$19:$G$38),""),"") -> 
C128: =IFERROR(INDEX('Direct Install - Unit Matrix'!$C$19:$C$38,SMALL(IF('Direct Install - Unit Matrix'!$G$19:$G$38<>"",ROW('Direct Install - Unit Matrix'!$C$19:$C$38)-ROW('Direct Install - Unit Matrix'!C$19)+1),ROWS('Direct Install - Unit Matrix'!C$19:$C26))),"") ->  | Q128: =IFERROR(IF(C128<>"",M128*COUNTA('Direct Install - Unit Matrix'!$G$19:$G$38),""),"") -> 
C129: =IFERROR(INDEX('Direct Install - Unit Matrix'!$C$19:$C$38,SMALL(IF('Direct Install - Unit Matrix'!$G$19:$G$38<>"",ROW('Direct Install - Unit Matrix'!$C$19:$C$38)-ROW('Direct Install - Unit Matrix'!C$19)+1),ROWS('Direct Install - Unit Matrix'!C$19:$C26))),"") ->  | Q129: =IFERROR(IF(C129<>"",M129*COUNTA('Direct Install - Unit Matrix'!$G$19:$G$38),""),"") -> 
C130: =IFERROR(INDEX('Direct Install - Unit Matrix'!$C$19:$C$38,SMALL(IF('Direct Install - Unit Matrix'!$G$19:$G$38<>"",ROW('Direct Install - Unit Matrix'!$C$19:$C$38)-ROW('Direct Install - Unit Matrix'!C$19)+1),ROWS('Direct Install - Unit Matrix'!C$19:$C26))),"") ->  | Q130: =IFERROR(IF(C130<>"",M130*COUNTA('Direct Install - Unit Matrix'!$G$19:$G$38),""),"") -> 
C131: =IFERROR(INDEX('Direct Install - Unit Matrix'!$C$19:$C$38,SMALL(IF('Direct Install - Unit Matrix'!$G$19:$G$38<>"",ROW('Direct Install - Unit Matrix'!$C$19:$C$38)-ROW('Direct Install - Unit Matrix'!C$19)+1),ROWS('Direct Install - Unit Matrix'!C$19:$C26))),"") ->  | Q131: =IFERROR(IF(C131<>"",M131*COUNTA('Direct Install - Unit Matrix'!$G$19:$G$38),""),"") -> 
C132: =IFERROR(INDEX('Direct Install - Unit Matrix'!$C$19:$C$38,SMALL(IF('Direct Install - Unit Matrix'!$G$19:$G$38<>"",ROW('Direct Install - Unit Matrix'!$C$19:$C$38)-ROW('Direct Install - Unit Matrix'!C$19)+1),ROWS('Direct Install - Unit Matrix'!C$19:$C26))),"") ->  | Q132: =IFERROR(IF(C132<>"",M132*COUNTA('Direct Install - Unit Matrix'!$G$19:$G$38),""),"") -> 
C133: =IFERROR(INDEX('Direct Install - Unit Matrix'!$C$19:$C$38,SMALL(IF('Direct Install - Unit Matrix'!$G$19:$G$38<>"",ROW('Direct Install - Unit Matrix'!$C$19:$C$38)-ROW('Direct Install - Unit Matrix'!C$19)+1),ROWS('Direct Install - Unit Matrix'!C$19:$C26))),"") ->  | Q133: =IFERROR(IF(C133<>"",M133*COUNTA('Direct Install - Unit Matrix'!$G$19:$G$38),""),"") -> 
C134: =IFERROR(INDEX('Direct Install - Unit Matrix'!$C$19:$C$38,SMALL(IF('Direct Install - Unit Matrix'!$G$19:$G$38<>"",ROW('Direct Install - Unit Matrix'!$C$19:$C$38)-ROW('Direct Install - Unit Matrix'!C$19)+1),ROWS('Direct Install - Unit Matrix'!C$19:$C26))),"") ->  | Q134: =IFERROR(IF(C134<>"",M134*COUNTA('Direct Install - Unit Matrix'!$G$19:$G$38),""),"") -> 
C135: =IFERROR(INDEX('Direct Install - Unit Matrix'!$C$19:$C$38,SMALL(IF('Direct Install - Unit Matrix'!$G$19:$G$38<>"",ROW('Direct Install - Unit Matrix'!$C$19:$C$38)-ROW('Direct Install - Unit Matrix'!C$19)+1),ROWS('Direct Install - Unit Matrix'!C$19:$C26))),"") ->  | Q135: =IFERROR(IF(C135<>"",M135*COUNTA('Direct Install - Unit Matrix'!$G$19:$G$38),""),"") -> 
C136: =IFERROR(INDEX('Direct Install - Unit Matrix'!$C$19:$C$38,SMALL(IF('Direct Install - Unit Matrix'!$G$19:$G$38<>"",ROW('Direct Install - Unit Matrix'!$C$19:$C$38)-ROW('Direct Install - Unit Matrix'!C$19)+1),ROWS('Direct Install - Unit Matrix'!C$19:$C26))),"") ->  | Q136: =IFERROR(IF(C136<>"",M136*COUNTA('Direct Install - Unit Matrix'!$G$19:$G$38),""),"") -> 
C137: =IFERROR(INDEX('Direct Install - Unit Matrix'!$C$19:$C$38,SMALL(IF('Direct Install - Unit Matrix'!$G$19:$G$38<>"",ROW('Direct Install - Unit Matrix'!$C$19:$C$38)-ROW('Direct Install - Unit Matrix'!C$19)+1),ROWS('Direct Install - Unit Matrix'!C$19:$C26))),"") ->  | Q137: =IFERROR(IF(C137<>"",M137*COUNTA('Direct Install - Unit Matrix'!$G$19:$G$38),""),"") -> 
C138: =IFERROR(INDEX('Direct Install - Unit Matrix'!$C$19:$C$38,SMALL(IF('Direct Install - Unit Matrix'!$G$19:$G$38<>"",ROW('Direct Install - Unit Matrix'!$C$19:$C$38)-ROW('Direct Install - Unit Matrix'!C$19)+1),ROWS('Direct Install - Unit Matrix'!C$19:$C26))),"") ->  | Q138: =IFERROR(IF(C138<>"",M138*COUNTA('Direct Install - Unit Matrix'!$G$19:$G$38),""),"") -> 
C139: =IFERROR(INDEX('Direct Install - Unit Matrix'!$C$19:$C$38,SMALL(IF('Direct Install - Unit Matrix'!$G$19:$G$38<>"",ROW('Direct Install - Unit Matrix'!$C$19:$C$38)-ROW('Direct Install - Unit Matrix'!C$19)+1),ROWS('Direct Install - Unit Matrix'!C$19:$C26))),"") ->  | Q139: =IFERROR(IF(C139<>"",M139*COUNTA('Direct Install - Unit Matrix'!$G$19:$G$38),""),"") -> 
C140: =IFERROR(INDEX('Direct Install - Unit Matrix'!$C$19:$C$38,SMALL(IF('Direct Install - Unit Matrix'!$G$19:$G$38<>"",ROW('Direct Install - Unit Matrix'!$C$19:$C$38)-ROW('Direct Install - Unit Matrix'!C$19)+1),ROWS('Direct Install - Unit Matrix'!C$19:$C26))),"") ->  | Q140: =IFERROR(IF(C140<>"",M140*COUNTA('Direct Install - Unit Matrix'!$G$19:$G$38),""),"") -> 
C141: =IFERROR(INDEX('Direct Install - Unit Matrix'!$C$19:$C$38,SMALL(IF('Direct Install - Unit Matrix'!$G$19:$G$38<>"",ROW('Direct Install - Unit Matrix'!$C$19:$C$38)-ROW('Direct Install - Unit Matrix'!C$19)+1),ROWS('Direct Install - Unit Matrix'!C$19:$C26))),"") ->  | Q141: =IFERROR(IF(C141<>"",M141*COUNTA('Direct Install - Unit Matrix'!$G$19:$G$38),""),"") -> 
C142: =IFERROR(INDEX('Direct Install - Unit Matrix'!$C$19:$C$38,SMALL(IF('Direct Install - Unit Matrix'!$G$19:$G$38<>"",ROW('Direct Install - Unit Matrix'!$C$19:$C$38)-ROW('Direct Install - Unit Matrix'!C$19)+1),ROWS('Direct Install - Unit Matrix'!C$19:$C26))),"") ->  | Q142: =IFERROR(IF(C142<>"",M142*COUNTA('Direct Install - Unit Matrix'!$G$19:$G$38),""),"") -> 
Q143: Sum | R143: =SUM(Q127:Q142) -> 0
C144: =IFERROR(INDEX('Direct Install - Unit Matrix'!$C$19:$C$38,SMALL(IF('Direct Install - Unit Matrix'!$G$19:$G$38<>"",ROW('Direct Install - Unit Matrix'!$C$19:$C$38)-ROW('Direct Install - Unit Matrix'!C$19)+1),ROWS('Direct Install - Unit Matrix'!C$19:$C27))),"") ->  | Q144: =IFERROR(IF(C144<>"",M144*COUNTA('Direct Install - Unit Matrix'!$G$19:$G$38),""),"") -> 
C145: =IFERROR(INDEX('Direct Install - Unit Matrix'!$C$19:$C$38,SMALL(IF('Direct Install - Unit Matrix'!$G$19:$G$38<>"",ROW('Direct Install - Unit Matrix'!$C$19:$C$38)-ROW('Direct Install - Unit Matrix'!C$19)+1),ROWS('Direct Install - Unit Matrix'!C$19:$C27))),"") ->  | Q145: =IFERROR(IF(C145<>"",M145*COUNTA('Direct Install - Unit Matrix'!$G$19:$G$38),""),"") -> 
C146: =IFERROR(INDEX('Direct Install - Unit Matrix'!$C$19:$C$38,SMALL(IF('Direct Install - Unit Matrix'!$G$19:$G$38<>"",ROW('Direct Install - Unit Matrix'!$C$19:$C$38)-ROW('Direct Install - Unit Matrix'!C$19)+1),ROWS('Direct Install - Unit Matrix'!C$19:$C27))),"") ->  | Q146: =IFERROR(IF(C146<>"",M146*COUNTA('Direct Install - Unit Matrix'!$G$19:$G$38),""),"") -> 
C147: =IFERROR(INDEX('Direct Install - Unit Matrix'!$C$19:$C$38,SMALL(IF('Direct Install - Unit Matrix'!$G$19:$G$38<>"",ROW('Direct Install - Unit Matrix'!$C$19:$C$38)-ROW('Direct Install - Unit Matrix'!C$19)+1),ROWS('Direct Install - Unit Matrix'!C$19:$C27))),"") ->  | Q147: =IFERROR(IF(C147<>"",M147*COUNTA('Direct Install - Unit Matrix'!$G$19:$G$38),""),"") -> 
C148: =IFERROR(INDEX('Direct Install - Unit Matrix'!$C$19:$C$38,SMALL(IF('Direct Install - Unit Matrix'!$G$19:$G$38<>"",ROW('Direct Install - Unit Matrix'!$C$19:$C$38)-ROW('Direct Install - Unit Matrix'!C$19)+1),ROWS('Direct Install - Unit Matrix'!C$19:$C27))),"") ->  | Q148: =IFERROR(IF(C148<>"",M148*COUNTA('Direct Install - Unit Matrix'!$G$19:$G$38),""),"") -> 
C149: =IFERROR(INDEX('Direct Install - Unit Matrix'!$C$19:$C$38,SMALL(IF('Direct Install - Unit Matrix'!$G$19:$G$38<>"",ROW('Direct Install - Unit Matrix'!$C$19:$C$38)-ROW('Direct Install - Unit Matrix'!C$19)+1),ROWS('Direct Install - Unit Matrix'!C$19:$C27))),"") ->  | Q149: =IFERROR(IF(C149<>"",M149*COUNTA('Direct Install - Unit Matrix'!$G$19:$G$38),""),"") -> 
C150: =IFERROR(INDEX('Direct Install - Unit Matrix'!$C$19:$C$38,SMALL(IF('Direct Install - Unit Matrix'!$G$19:$G$38<>"",ROW('Direct Install - Unit Matrix'!$C$19:$C$38)-ROW('Direct Install - Unit Matrix'!C$19)+1),ROWS('Direct Install - Unit Matrix'!C$19:$C27))),"") ->  | Q150: =IFERROR(IF(C150<>"",M150*COUNTA('Direct Install - Unit Matrix'!$G$19:$G$38),""),"") -> 
C151: =IFERROR(INDEX('Direct Install - Unit Matrix'!$C$19:$C$38,SMALL(IF('Direct Install - Unit Matrix'!$G$19:$G$38<>"",ROW('Direct Install - Unit Matrix'!$C$19:$C$38)-ROW('Direct Install - Unit Matrix'!C$19)+1),ROWS('Direct Install - Unit Matrix'!C$19:$C27))),"") ->  | Q151: =IFERROR(IF(C151<>"",M151*COUNTA('Direct Install - Unit Matrix'!$G$19:$G$38),""),"") -> 
C152: =IFERROR(INDEX('Direct Install - Unit Matrix'!$C$19:$C$38,SMALL(IF('Direct Install - Unit Matrix'!$G$19:$G$38<>"",ROW('Direct Install - Unit Matrix'!$C$19:$C$38)-ROW('Direct Install - Unit Matrix'!C$19)+1),ROWS('Direct Install - Unit Matrix'!C$19:$C27))),"") ->  | Q152: =IFERROR(IF(C152<>"",M152*COUNTA('Direct Install - Unit Matrix'!$G$19:$G$38),""),"") -> 
C153: =IFERROR(INDEX('Direct Install - Unit Matrix'!$C$19:$C$38,SMALL(IF('Direct Install - Unit Matrix'!$G$19:$G$38<>"",ROW('Direct Install - Unit Matrix'!$C$19:$C$38)-ROW('Direct Install - Unit Matrix'!C$19)+1),ROWS('Direct Install - Unit Matrix'!C$19:$C27))),"") ->  | Q153: =IFERROR(IF(C153<>"",M153*COUNTA('Direct Install - Unit Matrix'!$G$19:$G$38),""),"") -> 
C154: =IFERROR(INDEX('Direct Install - Unit Matrix'!$C$19:$C$38,SMALL(IF('Direct Install - Unit Matrix'!$G$19:$G$38<>"",ROW('Direct Install - Unit Matrix'!$C$19:$C$38)-ROW('Direct Install - Unit Matrix'!C$19)+1),ROWS('Direct Install - Unit Matrix'!C$19:$C27))),"") ->  | Q154: =IFERROR(IF(C154<>"",M154*COUNTA('Direct Install - Unit Matrix'!$G$19:$G$38),""),"") -> 
C155: =IFERROR(INDEX('Direct Install - Unit Matrix'!$C$19:$C$38,SMALL(IF('Direct Install - Unit Matrix'!$G$19:$G$38<>"",ROW('Direct Install - Unit Matrix'!$C$19:$C$38)-ROW('Direct Install - Unit Matrix'!C$19)+1),ROWS('Direct Install - Unit Matrix'!C$19:$C27))),"") ->  | Q155: =IFERROR(IF(C155<>"",M155*COUNTA('Direct Install - Unit Matrix'!$G$19:$G$38),""),"") -> 
C156: =IFERROR(INDEX('Direct Install - Unit Matrix'!$C$19:$C$38,SMALL(IF('Direct Install - Unit Matrix'!$G$19:$G$38<>"",ROW('Direct Install - Unit Matrix'!$C$19:$C$38)-ROW('Direct Install - Unit Matrix'!C$19)+1),ROWS('Direct Install - Unit Matrix'!C$19:$C27))),"") ->  | Q156: =IFERROR(IF(C156<>"",M156*COUNTA('Direct Install - Unit Matrix'!$G$19:$G$38),""),"") -> 
C157: =IFERROR(INDEX('Direct Install - Unit Matrix'!$C$19:$C$38,SMALL(IF('Direct Install - Unit Matrix'!$G$19:$G$38<>"",ROW('Direct Install - Unit Matrix'!$C$19:$C$38)-ROW('Direct Install - Unit Matrix'!C$19)+1),ROWS('Direct Install - Unit Matrix'!C$19:$C27))),"") ->  | Q157: =IFERROR(IF(C157<>"",M157*COUNTA('Direct Install - Unit Matrix'!$G$19:$G$38),""),"") -> 
C158: =IFERROR(INDEX('Direct Install - Unit Matrix'!$C$19:$C$38,SMALL(IF('Direct Install - Unit Matrix'!$G$19:$G$38<>"",ROW('Direct Install - Unit Matrix'!$C$19:$C$38)-ROW('Direct Install - Unit Matrix'!C$19)+1),ROWS('Direct Install - Unit Matrix'!C$19:$C27))),"") ->  | Q158: =IFERROR(IF(C158<>"",M158*COUNTA('Direct Install - Unit Matrix'!$G$19:$G$38),""),"") -> 
C159: =IFERROR(INDEX('Direct Install - Unit Matrix'!$C$19:$C$38,SMALL(IF('Direct Install - Unit Matrix'!$G$19:$G$38<>"",ROW('Direct Install - Unit Matrix'!$C$19:$C$38)-ROW('Direct Install - Unit Matrix'!C$19)+1),ROWS('Direct Install - Unit Matrix'!C$19:$C27))),"") ->  | Q159: =IFERROR(IF(C159<>"",M159*COUNTA('Direct Install - Unit Matrix'!$G$19:$G$38),""),"") -> 
Q160: Sum | R160: =SUM(Q144:Q159) -> 0
C161: =IFERROR(INDEX('Direct Install - Unit Matrix'!$C$19:$C$38,SMALL(IF('Direct Install - Unit Matrix'!$G$19:$G$38<>"",ROW('Direct Install - Unit Matrix'!$C$19:$C$38)-ROW('Direct Install - Unit Matrix'!C$19)+1),ROWS('Direct Install - Unit Matrix'!C$19:$C28))),"") ->  | Q161: =IFERROR(IF(C161<>"",M161*COUNTA('Direct Install - Unit Matrix'!$G$19:$G$38),""),"") -> 
C162: =IFERROR(INDEX('Direct Install - Unit Matrix'!$C$19:$C$38,SMALL(IF('Direct Install - Unit Matrix'!$G$19:$G$38<>"",ROW('Direct Install - Unit Matrix'!$C$19:$C$38)-ROW('Direct Install - Unit Matrix'!C$19)+1),ROWS('Direct Install - Unit Matrix'!C$19:$C28))),"") ->  | Q162: =IFERROR(IF(C162<>"",M162*COUNTA('Direct Install - Unit Matrix'!$G$19:$G$38),""),"") -> 
C163: =IFERROR(INDEX('Direct Install - Unit Matrix'!$C$19:$C$38,SMALL(IF('Direct Install - Unit Matrix'!$G$19:$G$38<>"",ROW('Direct Install - Unit Matrix'!$C$19:$C$38)-ROW('Direct Install - Unit Matrix'!C$19)+1),ROWS('Direct Install - Unit Matrix'!C$19:$C28))),"") ->  | Q163: =IFERROR(IF(C163<>"",M163*COUNTA('Direct Install - Unit Matrix'!$G$19:$G$38),""),"") -> 
C164: =IFERROR(INDEX('Direct Install - Unit Matrix'!$C$19:$C$38,SMALL(IF('Direct Install - Unit Matrix'!$G$19:$G$38<>"",ROW('Direct Install - Unit Matrix'!$C$19:$C$38)-ROW('Direct Install - Unit Matrix'!C$19)+1),ROWS('Direct Install - Unit Matrix'!C$19:$C28))),"") ->  | Q164: =IFERROR(IF(C164<>"",M164*COUNTA('Direct Install - Unit Matrix'!$G$19:$G$38),""),"") -> 
C165: =IFERROR(INDEX('Direct Install - Unit Matrix'!$C$19:$C$38,SMALL(IF('Direct Install - Unit Matrix'!$G$19:$G$38<>"",ROW('Direct Install - Unit Matrix'!$C$19:$C$38)-ROW('Direct Install - Unit Matrix'!C$19)+1),ROWS('Direct Install - Unit Matrix'!C$19:$C28))),"") ->  | Q165: =IFERROR(IF(C165<>"",M165*COUNTA('Direct Install - Unit Matrix'!$G$19:$G$38),""),"") -> 
C166: =IFERROR(INDEX('Direct Install - Unit Matrix'!$C$19:$C$38,SMALL(IF('Direct Install - Unit Matrix'!$G$19:$G$38<>"",ROW('Direct Install - Unit Matrix'!$C$19:$C$38)-ROW('Direct Install - Unit Matrix'!C$19)+1),ROWS('Direct Install - Unit Matrix'!C$19:$C28))),"") ->  | Q166: =IFERROR(IF(C166<>"",M166*COUNTA('Direct Install - Unit Matrix'!$G$19:$G$38),""),"") -> 
C167: =IFERROR(INDEX('Direct Install - Unit Matrix'!$C$19:$C$38,SMALL(IF('Direct Install - Unit Matrix'!$G$19:$G$38<>"",ROW('Direct Install - Unit Matrix'!$C$19:$C$38)-ROW('Direct Install - Unit Matrix'!C$19)+1),ROWS('Direct Install - Unit Matrix'!C$19:$C28))),"") ->  | Q167: =IFERROR(IF(C167<>"",M167*COUNTA('Direct Install - Unit Matrix'!$G$19:$G$38),""),"") -> 
C168: =IFERROR(INDEX('Direct Install - Unit Matrix'!$C$19:$C$38,SMALL(IF('Direct Install - Unit Matrix'!$G$19:$G$38<>"",ROW('Direct Install - Unit Matrix'!$C$19:$C$38)-ROW('Direct Install - Unit Matrix'!C$19)+1),ROWS('Direct Install - Unit Matrix'!C$19:$C28))),"") ->  | Q168: =IFERROR(IF(C168<>"",M168*COUNTA('Direct Install - Unit Matrix'!$G$19:$G$38),""),"") -> 
C169: =IFERROR(INDEX('Direct Install - Unit Matrix'!$C$19:$C$38,SMALL(IF('Direct Install - Unit Matrix'!$G$19:$G$38<>"",ROW('Direct Install - Unit Matrix'!$C$19:$C$38)-ROW('Direct Install - Unit Matrix'!C$19)+1),ROWS('Direct Install - Unit Matrix'!C$19:$C28))),"") ->  | Q169: =IFERROR(IF(C169<>"",M169*COUNTA('Direct Install - Unit Matrix'!$G$19:$G$38),""),"") -> 
C170: =IFERROR(INDEX('Direct Install - Unit Matrix'!$C$19:$C$38,SMALL(IF('Direct Install - Unit Matrix'!$G$19:$G$38<>"",ROW('Direct Install - Unit Matrix'!$C$19:$C$38)-ROW('Direct Install - Unit Matrix'!C$19)+1),ROWS('Direct Install - Unit Matrix'!C$19:$C28))),"") ->  | Q170: =IFERROR(IF(C170<>"",M170*COUNTA('Direct Install - Unit Matrix'!$G$19:$G$38),""),"") -> 
C171: =IFERROR(INDEX('Direct Install - Unit Matrix'!$C$19:$C$38,SMALL(IF('Direct Install - Unit Matrix'!$G$19:$G$38<>"",ROW('Direct Install - Unit Matrix'!$C$19:$C$38)-ROW('Direct Install - Unit Matrix'!C$19)+1),ROWS('Direct Install - Unit Matrix'!C$19:$C28))),"") ->  | Q171: =IFERROR(IF(C171<>"",M171*COUNTA('Direct Install - Unit Matrix'!$G$19:$G$38),""),"") -> 
C172: =IFERROR(INDEX('Direct Install - Unit Matrix'!$C$19:$C$38,SMALL(IF('Direct Install - Unit Matrix'!$G$19:$G$38<>"",ROW('Direct Install - Unit Matrix'!$C$19:$C$38)-ROW('Direct Install - Unit Matrix'!C$19)+1),ROWS('Direct Install - Unit Matrix'!C$19:$C28))),"") ->  | Q172: =IFERROR(IF(C172<>"",M172*COUNTA('Direct Install - Unit Matrix'!$G$19:$G$38),""),"") -> 
C173: =IFERROR(INDEX('Direct Install - Unit Matrix'!$C$19:$C$38,SMALL(IF('Direct Install - Unit Matrix'!$G$19:$G$38<>"",ROW('Direct Install - Unit Matrix'!$C$19:$C$38)-ROW('Direct Install - Unit Matrix'!C$19)+1),ROWS('Direct Install - Unit Matrix'!C$19:$C28))),"") ->  | Q173: =IFERROR(IF(C173<>"",M173*COUNTA('Direct Install - Unit Matrix'!$G$19:$G$38),""),"") -> 
C174: =IFERROR(INDEX('Direct Install - Unit Matrix'!$C$19:$C$38,SMALL(IF('Direct Install - Unit Matrix'!$G$19:$G$38<>"",ROW('Direct Install - Unit Matrix'!$C$19:$C$38)-ROW('Direct Install - Unit Matrix'!C$19)+1),ROWS('Direct Install - Unit Matrix'!C$19:$C28))),"") ->  | Q174: =IFERROR(IF(C174<>"",M174*COUNTA('Direct Install - Unit Matrix'!$G$19:$G$38),""),"") -> 
C175: =IFERROR(INDEX('Direct Install - Unit Matrix'!$C$19:$C$38,SMALL(IF('Direct Install - Unit Matrix'!$G$19:$G$38<>"",ROW('Direct Install - Unit Matrix'!$C$19:$C$38)-ROW('Direct Install - Unit Matrix'!C$19)+1),ROWS('Direct Install - Unit Matrix'!C$19:$C28))),"") ->  | Q175: =IFERROR(IF(C175<>"",M175*COUNTA('Direct Install - Unit Matrix'!$G$19:$G$38),""),"") -> 
C176: =IFERROR(INDEX('Direct Install - Unit Matrix'!$C$19:$C$38,SMALL(IF('Direct Install - Unit Matrix'!$G$19:$G$38<>"",ROW('Direct Install - Unit Matrix'!$C$19:$C$38)-ROW('Direct Install - Unit Matrix'!C$19)+1),ROWS('Direct Install - Unit Matrix'!C$19:$C28))),"") ->  | Q176: =IFERROR(IF(C176<>"",M176*COUNTA('Direct Install - Unit Matrix'!$G$19:$G$38),""),"") -> 
Q177: Sum | R177: =SUM(Q161:Q176) -> 0

Sheet Common and Exterior Lighting (hidden)
D2: ='Step 1 - Project Info'!$C$3&" - "&'Step 1 - Project Info'!$C$7 -> - | O2: Company and Auditor Name
B7: Area Description | C7: Unit Quantity Before | D7: Description Before | E7: Watts/ Unit Before | F7: Annual Hours Before (Verify if over 6000) | G7: Item Type - Select From Picklist | H7: Lighting Group Type - Select From Picklist (Hold Mouse on Cell H7 To View Descriptions) | I7: Unit Quantity After | J7: Description After | K7: Proposed Fixture Manufacturer | L7: Proposed Fixture Model Number | M7: DLC Product ID or ENERGY STAR | N7: "NEW" Occupancy Sensor Controlled? (Y or N) | O7: Watts/ Unit After | P7: Annual Hours After | Q7: Installed Cost/ Fixture | R7: Total Cost/ Group
A8: Example | B8: Exterior Pole Lights | C8: 465 | D8: 70W High Pressure Sodium | E8: 95 | F8: 4004 | G8: Retrofit Fixtures | H8: High-Performance Exterior | I8: 250 | J8: 20W LED Wallpack | K8: MaxLite | L8: 123456789 | M8: ENERGY STAR | N8: Y | O8: 20 | P8: =IF(N8="Y",F8*0.7,F8) -> 2802.8 | Q8: 50 | R8: =IF(G8="Non-Eligible",0,IF(I8*Q8=0,"",(I8*(Q8)))) -> 12500
R10: =IF(G10="Non-Eligible",0,IF(I10*Q10=0,"",(I10*(Q10)))) -> 
R11: =IF(G11="Non-Eligible",0,IF(I11*Q11=0,"",(I11*(Q11)))) -> 
R75: =IF(G75="Non-Eligible",0,IF(I75*Q75=0,"",(I75*(Q75)))) -> 

Sheet Lighting Summary (hidden)
D2: ='Step 1 - Project Info'!$C$3&" - "&'Step 1 - Project Info'!$C$7 -> -
B5: Note: PLEASE SPECIFY MISCELLANEOUS COST ASSOCIATED WITH LIGHTING INSTALLATION. THE PURPOSE OF THIS TAB IS TO SUMMARIZE THE LIGHTING THAT IS BEING PROPOSED TO BE INSTALLED THROUGHOUT THE ENTIRE PROPERTY.
C6: TOTAL LIGHTING QUANTITY THE BUILDING NEEDS TO BE SERVICED
B9: Dwelling Unit
B10: Existing Bulb Name | C10: Existing Bulb Wattage | D10: Recommended Bulb Name/ Model | E10: Proposed Bulb Wattage | F10: Quantity | G10: Location | H10: Material cost | I10: Labor Cost | J10: Total Cost
A11: Example | B11: CFL | C11: 13 | D11: New fixture | E11: 10 | F11: 5 | G11: Hallway | H11: 100 | I11: 27 | J11: =IFERROR((H11+I11)*F11,"") -> 635
B16: =IF('Dwelling Unit Lighting'!E16<>"",'Dwelling Unit Lighting'!E16,"") ->  | C16: =IF('Dwelling Unit Lighting'!F16<>"",'Dwelling Unit Lighting'!F16,"") ->  | D16: =IF('Dwelling Unit Lighting'!K16<>"",'Dwelling Unit Lighting'!K16,"") ->  | E16: =IF('Dwelling Unit Lighting'!N16<>"",'Dwelling Unit Lighting'!N16,"") ->  | F16: =IF('Dwelling Unit Lighting'!M16<>"",'Dwelling Unit Lighting'!M16,"") ->  | J16: =IFERROR((H16+I16)*F16,"") -> 
B17: =IF('Dwelling Unit Lighting'!E17<>"",'Dwelling Unit Lighting'!E17,"") ->  | C17: =IF('Dwelling Unit Lighting'!F17<>"",'Dwelling Unit Lighting'!F17,"") ->  | D17: =IF('Dwelling Unit Lighting'!K17<>"",'Dwelling Unit Lighting'!K17,"") ->  | E17: =IF('Dwelling Unit Lighting'!N17<>"",'Dwelling Unit Lighting'!N17,"") ->  | F17: =IF('Dwelling Unit Lighting'!M17<>"",'Dwelling Unit Lighting'!M17,"") ->  | G17: =IFERROR(INDEX('Dwelling Unit Lighting'!$D$11:$D$194,SMALL(IF('Dwelling Unit Lighting'!$D$11:$D$194<>"",ROW('Dwelling Unit Lighting'!$D$11:$D$194)-ROW(D$10)+1),ROWS(D$10:D16))),"") -> 
B18: =IF('Dwelling Unit Lighting'!E18<>"",'Dwelling Unit Lighting'!E18,"") ->  | C18: =IF('Dwelling Unit Lighting'!F18<>"",'Dwelling Unit Lighting'!F18,"") ->  | D18: =IF('Dwelling Unit Lighting'!K18<>"",'Dwelling Unit Lighting'!K18,"") ->  | E18: =IF('Dwelling Unit Lighting'!N18<>"",'Dwelling Unit Lighting'!N18,"") ->  | F18: =IF('Dwelling Unit Lighting'!M18<>"",'Dwelling Unit Lighting'!M18,"") ->  | G18: =IFERROR(INDEX('Dwelling Unit Lighting'!$D$11:$D$194,SMALL(IF('Dwelling Unit Lighting'!$D$11:$D$194<>"",ROW('Dwelling Unit Lighting'!$D$11:$D$194)-ROW(D$10)+1),ROWS(D$10:D17))),"") ->  | I18: Total | J18: =SUM(J11:J17) -> 635
B19: Existing Fixture Name | C19: Existing Fixture Wattage | D19: Recommended Fixture Name/ Model | E19: Proposed Fixture Wattage | F19: Quantity | G19: Location | H19: Material cost | I19: Labor Cost | J19: Total Cost
A20: Example | B20: Incandescent Drum | C20: 120 | D20: LED DC014 | E20: 14 | F20: 390 | G20: Bedroom | H20: 25 | I20: 25 | J20: =(H20+I20)*F20 -> 19500
A21: Example | B21: Incandescent Drum | C21: 80 | D21: LED DC015 | E21: 8 | F21: 217 | G21: Bathroom | H21: 25 | I21: 25 | J21: =(H21+I21)*F21 -> 10850
I26: Total | J26: =SUM(J20:J25) -> 30350
B29: Common Area
B30: Description Before | C30: Existing Fixture or Bulb Wattage | D30: Description After | E30: Wattage | F30: Quantity | G30: Location | H30: Total Cost
A31: Example | B31: =IF('Common and Exterior Lighting'!D8<>"",'Common and Exterior Lighting'!D8,"") -> 70W High Pressure Sodium | C31: =IF('Common and Exterior Lighting'!E8<>"",'Common and Exterior Lighting'!E8,"") -> 95 | D31: =IF('Common and Exterior Lighting'!J8<>"",'Common and Exterior Lighting'!J8,"") -> 20W LED Wallpack | E31: =IF('Common and Exterior Lighting'!O8<>"",'Common and Exterior Lighting'!O8,"") -> 20 | F31: =IF('Common and Exterior Lighting'!I8<>"",'Common and Exterior Lighting'!I8,"") -> 250 | G31: =IF('Common and Exterior Lighting'!B8<>"",'Common and Exterior Lighting'!B8,"") -> Exterior Pole Lights | H31: =IF('Common and Exterior Lighting'!R8<>"",'Common and Exterior Lighting'!R8,"") -> 12500
B32: =IF('Common and Exterior Lighting'!D9<>"",'Common and Exterior Lighting'!D9,"") ->  | C32: =IF('Common and Exterior Lighting'!E9<>"",'Common and Exterior Lighting'!E9,"") ->  | D32: =IF('Common and Exterior Lighting'!J9<>"",'Common and Exterior Lighting'!J9,"") ->  | E32: =IF('Common and Exterior Lighting'!O9<>"",'Common and Exterior Lighting'!O9,"") ->  | F32: =IF('Common and Exterior Lighting'!I9<>"",'Common and Exterior Lighting'!I9,"") ->  | G32: =IF('Common and Exterior Lighting'!B9<>"",'Common and Exterior Lighting'!B9,"") ->  | H32: =IF('Common and Exterior Lighting'!R9<>"",'Common and Exterior Lighting'!R9,"") -> 
B33: =IF('Common and Exterior Lighting'!D10<>"",'Common and Exterior Lighting'!D10,"") ->  | C33: =IF('Common and Exterior Lighting'!E10<>"",'Common and Exterior Lighting'!E10,"") ->  | D33: =IF('Common and Exterior Lighting'!J10<>"",'Common and Exterior Lighting'!J10,"") ->  | E33: =IF('Common and Exterior Lighting'!O10<>"",'Common and Exterior Lighting'!O10,"") ->  | F33: =IF('Common and Exterior Lighting'!I10<>"",'Common and Exterior Lighting'!I10,"") ->  | G33: =IF('Common and Exterior Lighting'!B10<>"",'Common and Exterior Lighting'!B10,"") ->  | H33: =IF('Common and Exterior Lighting'!R10<>"",'Common and Exterior Lighting'!R10,"") -> 
B34: =IF('Common and Exterior Lighting'!D11<>"",'Common and Exterior Lighting'!D11,"") ->  | C34: =IF('Common and Exterior Lighting'!E11<>"",'Common and Exterior Lighting'!E11,"") ->  | D34: =IF('Common and Exterior Lighting'!J11<>"",'Common and Exterior Lighting'!J11,"") ->  | E34: =IF('Common and Exterior Lighting'!O11<>"",'Common and Exterior Lighting'!O11,"") ->  | F34: =IF('Common and Exterior Lighting'!I11<>"",'Common and Exterior Lighting'!I11,"") ->  | G34: =IF('Common and Exterior Lighting'!B11<>"",'Common and Exterior Lighting'!B11,"") ->  | H34: =IF('Common and Exterior Lighting'!R11<>"",'Common and Exterior Lighting'!R11,"") -> 
B35: =IF('Common and Exterior Lighting'!D12<>"",'Common and Exterior Lighting'!D12,"") ->  | C35: =IF('Common and Exterior Lighting'!E12<>"",'Common and Exterior Lighting'!E12,"") ->  | D35: =IF('Common and Exterior Lighting'!J12<>"",'Common and Exterior Lighting'!J12,"") ->  | E35: =IF('Common and Exterior Lighting'!O12<>"",'Common and Exterior Lighting'!O12,"") ->  | F35: =IF('Common and Exterior Lighting'!I12<>"",'Common and Exterior Lighting'!I12,"") ->  | G35: =IF('Common and Exterior Lighting'!B12<>"",'Common and Exterior Lighting'!B12,"") ->  | H35: =IF('Common and Exterior Lighting'!R12<>"",'Common and Exterior Lighting'!R12,"") -> 
B36: =IF('Common and Exterior Lighting'!D13<>"",'Common and Exterior Lighting'!D13,"") ->  | C36: =IF('Common and Exterior Lighting'!E13<>"",'Common and Exterior Lighting'!E13,"") ->  | D36: =IF('Common and Exterior Lighting'!J13<>"",'Common and Exterior Lighting'!J13,"") ->  | E36: =IF('Common and Exterior Lighting'!O13<>"",'Common and Exterior Lighting'!O13,"") ->  | F36: =IF('Common and Exterior Lighting'!I13<>"",'Common and Exterior Lighting'!I13,"") ->  | G36: =IF('Common and Exterior Lighting'!B13<>"",'Common and Exterior Lighting'!B13,"") ->  | H36: =IF('Common and Exterior Lighting'!R13<>"",'Common and Exterior Lighting'!R13,"") -> 
B37: =IF('Common and Exterior Lighting'!D14<>"",'Common and Exterior Lighting'!D14,"") ->  | C37: =IF('Common and Exterior Lighting'!E14<>"",'Common and Exterior Lighting'!E14,"") ->  | D37: =IF('Common and Exterior Lighting'!J14<>"",'Common and Exterior Lighting'!J14,"") ->  | E37: =IF('Common and Exterior Lighting'!O14<>"",'Common and Exterior Lighting'!O14,"") ->  | F37: =IF('Common and Exterior Lighting'!I14<>"",'Common and Exterior Lighting'!I14,"") ->  | G37: =IF('Common and Exterior Lighting'!B14<>"",'Common and Exterior Lighting'!B14,"") ->  | H37: =IF('Common and Exterior Lighting'!R14<>"",'Common and Exterior Lighting'!R14,"") -> 
B38: =IF('Common and Exterior Lighting'!D15<>"",'Common and Exterior Lighting'!D15,"") ->  | C38: =IF('Common and Exterior Lighting'!E15<>"",'Common and Exterior Lighting'!E15,"") ->  | D38: =IF('Common and Exterior Lighting'!J15<>"",'Common and Exterior Lighting'!J15,"") ->  | E38: =IF('Common and Exterior Lighting'!O15<>"",'Common and Exterior Lighting'!O15,"") ->  | F38: =IF('Common and Exterior Lighting'!I15<>"",'Common and Exterior Lighting'!I15,"") ->  | G38: =IF('Common and Exterior Lighting'!B15<>"",'Common and Exterior Lighting'!B15,"") ->  | H38: =IF('Common and Exterior Lighting'!R15<>"",'Common and Exterior Lighting'!R15,"") -> 
B39: =IF('Common and Exterior Lighting'!D16<>"",'Common and Exterior Lighting'!D16,"") ->  | C39: =IF('Common and Exterior Lighting'!E16<>"",'Common and Exterior Lighting'!E16,"") ->  | D39: =IF('Common and Exterior Lighting'!J16<>"",'Common and Exterior Lighting'!J16,"") ->  | E39: =IF('Common and Exterior Lighting'!O16<>"",'Common and Exterior Lighting'!O16,"") ->  | F39: =IF('Common and Exterior Lighting'!I16<>"",'Common and Exterior Lighting'!I16,"") ->  | G39: =IF('Common and Exterior Lighting'!B16<>"",'Common and Exterior Lighting'!B16,"") ->  | H39: =IF('Common and Exterior Lighting'!R16<>"",'Common and Exterior Lighting'!R16,"") -> 
B40: =IF('Common and Exterior Lighting'!D17<>"",'Common and Exterior Lighting'!D17,"") ->  | C40: =IF('Common and Exterior Lighting'!E17<>"",'Common and Exterior Lighting'!E17,"") ->  | D40: =IF('Common and Exterior Lighting'!J17<>"",'Common and Exterior Lighting'!J17,"") ->  | E40: =IF('Common and Exterior Lighting'!O17<>"",'Common and Exterior Lighting'!O17,"") ->  | F40: =IF('Common and Exterior Lighting'!I17<>"",'Common and Exterior Lighting'!I17,"") ->  | G40: =IF('Common and Exterior Lighting'!B17<>"",'Common and Exterior Lighting'!B17,"") ->  | H40: =IF('Common and Exterior Lighting'!R17<>"",'Common and Exterior Lighting'!R17,"") -> 
B41: =IF('Common and Exterior Lighting'!D18<>"",'Common and Exterior Lighting'!D18,"") ->  | C41: =IF('Common and Exterior Lighting'!E18<>"",'Common and Exterior Lighting'!E18,"") ->  | D41: =IF('Common and Exterior Lighting'!J18<>"",'Common and Exterior Lighting'!J18,"") ->  | E41: =IF('Common and Exterior Lighting'!O18<>"",'Common and Exterior Lighting'!O18,"") ->  | F41: =IF('Common and Exterior Lighting'!I18<>"",'Common and Exterior Lighting'!I18,"") ->  | G41: =IF('Common and Exterior Lighting'!B18<>"",'Common and Exterior Lighting'!B18,"") ->  | H41: =IF('Common and Exterior Lighting'!R18<>"",'Common and Exterior Lighting'!R18,"") -> 
G42: Total | H42: =SUM(H31:H40) -> 12500

Sheet Insulation (hidden)
C3: ='Step 1 - Project Info'!$C$3&" - "&'Step 1 - Project Info'!$C$7 -> -
B7: Location | C7: Square Footage of Insulation (Linear feet for attic air sealing) | D7: Existing Insulation Type | E7: Existing Insulation Thickness (Inches) | F7: Existing Insulation R-value | G7: Proposed Insulation Type | H7: Proposed Insulation Thickness (Inches) | I7: Proposed Installed Insulation R-value | J7: Proposed Project Cost

Sheet Window Replacements (hidden)
F2: ='Step 1 - Project Info'!$C$3&" - "&'Step 1 - Project Info'!$C$7 -> -
D7: EXISTING WINDOW TYPES | E7: PROPOSED MANUFACTURER AND MODEL NUMBER | F7: CPD NUMBER | G7: PROPOSED U-VALUE | H7: WIDTH | I7: LENGTH | J7: QUANTITY | K7: TOTAL AREA | L7: PROPOSED WINDOW TYPE | M7: PROPOSED WINDOW MATERIAL COST | N7: PROPOSED WINDOW LABOR COST | O7: TOTAL COST
B8: Single Pane without Storm
B9: Single Pane with Storm
B10: Double Pane

Sheet Refrigerator Replacements (hidden)
C2: ='Step 1 - Project Info'!$C$3&" - "&'Step 1 - Project Info'!$C$7 -> -
E3: Existing Units | J3: Proposed Units
C4: Number of Refrigerators | D4: Unit # | E4: Age | F4: Make | G4: Size (cubic ft) | H4: Model | I4: KWH | J4: Model | K4: Size (cubic ft) | L4: KWH | M4: Cost
B5: Example | C5: 10 | D5: A101 | E5: 15 yrs | F5: Hotpoint | G5: 14 | H5: CTH14CYBRLWW | I5: 499 | J5: FFHT1513LW | K5: 15 | L5: 355 | M5: 574
I11: =SUM(I5:I9) -> 499 | L11: =SUM(L5:L9) -> 355 | M11: =SUM(M5:M9) -> 574
H13: ∆kWh = | I13: =I11-L11 -> 144
H14: Est. Savings =
H15: Est. Payback =

Sheet HVAC
D2: ='Step 1 - Project Info'!$C$3&" - "&'Step 1 - Project Info'!$C$7 -> -
E11: HEATING SYSTEM
C13: LOCATION | D13: INDIVIDUAL OR CENTRAL SYSTEM | E13: AGE | F13: EXISTING HEATING SYSTEM TYPE | G13: MODEL NUMBER | H13: EXISTING SIZE (INPUT MBTU) | I13: EXISTING EFFICIENCY (AFUE or HSPF) | J13: PROPOSED HEATING TYPE | K13: INDIVIDUAL OR CENTRAL SYSTEM | L13: MANUFACTURER & MODEL NUMBER | M13: SIZE (INPUT MBTU) | N13: PROPOSED EFFICIENCY (AFUE or HSPF) | O13: QUANTITY | P13: PROJECT COST
C19: Is there a indirect hot water system working with the existing boiler?
E23: HEATING SYSTEM CIRCULATOR PUMPS
C25: LOCATION | D25: EXISTING HEATING SYSTEM PUMPS TYPE | E25: AGE | F25: SIZE (HP) | G25: INDIVIDUAL OR CENTRAL SYSTEM | H25: QUANTITY | I25: ARE THERE BACK-UPS? | J25: QUANTITY OF BACK-UPS | K25: PROPOSED HEATING SYSTEM PUMPS TYPE | L25: SIZE (HP) | M25: EFFICIENCY | N25: INDIVIDUAL OR CENTRAL SYSTEM | O25: QUANTITY | P25: ARE THERE BACK-UPS? | Q25: QUANTITY OF BACK-UPS | R25: PROJECT COST
C32: How is the pump being controlled?
E37: DOMESTIC HOT WATER HEATER
C39: LOCATION | D39: EXISTING WATER HEATER FUEL | E39: EXISTING HOT WATER HEATER TYPE | F39: AGE | G39: SIZE (MBTUH) | H39: INDIVIDUAL OR CENTRAL SYSTEM | I39: QUANTITY | J39: PROPOSED HOT WATER HEATER TYPE | K39: SIZE (MBTUH) | L39: EFFICIENCY | M39: MANUFACTURER & MODEL NUMBER | N39: INDIVIDUAL OR CENTRAL SYSTEM | O39: QUANTITY | P39: PROJECT COST
E50: DOMESTIC HOT WATER CIRCULATOR PUMPS
C52: LOCATION | D52: EXISTING HOT WATER HEATER PUMPS TYPE | E52: AGE | F52: SIZE (HP) | G52: QUANTITY | H52: ARE THERE BACK-UP PUMPS? | I52: QUANTITY OF BACK-UPS | J52: PROPOSED HOT WATER HEATER PUMPS TYPE | K52: SIZE (HP) | L52: EFFICIENCY | M52: MANUFACTURER & MODEL NUMBER | N52: QUANTITY | O52: PROJECT COST
C58: How is the pump being controlled?
E62: COOLING SYSTEM
C64: LOCATION | D64: EXISTING COOLING SYSTEM TYPE | E64: INDIVIDUAL OR CENTRAL SYSTEM | F64: AGE | G64: SIZE (BTUH) | H64: QUANTITY | I64: PROPOSED COOLING TYPE | J64: INDIVIDUAL OR CENTRAL SYSTEM | K64: SIZE (BTUH) | L64: EFFICIENCY (SEER/EER) | M64: MANUFACTURER & MODEL NUMBER | N64: QUANTITY | O64: PROJECT COST
C70: Heat Pumps - What is the control strategy for back up heat?

Sheet Smart Thermostats (hidden)
E2: ='Step 1 - Project Info'!$C$3&" - "&'Step 1 - Project Info'!$C$7 -> -
D9: Smart Thermostats
C11: LOCATION TYPE (dwelling unit/common area) | D11: QUANTITY | E11: MANUFACTURER | F11: MODEL NUMBER | G11: CENTRAL AC SYSTEM (Yes/No) | H11: EXISTING HEATING SYSTEM TYPE | I11: PROJECT COST (Labor & Material)

Sheet Custom Measure (hidden)
C2: ='Step 1 - Project Info'!$C$3&" - "&'Step 1 - Project Info'!$C$7 -> -
F7: Custom Measure Details
B9: LOCATION | C9: EXISTING MEASURE | D9: MODEL NUMBER | E9: AGE | F9: ADDITIONAL DETAIL ON EXISTING MEASURE | G9: ADDITIONAL DETAIL ON EXISTING MEASURE | H9: Existing Measure Quantity | I9: PROPOSED MEASURE | J9: ADDITIONAL DETAIL ON EXISTING MEASURE | K9: ADDITIONAL DETAIL ON EXISTING MEASURE | L9: Proposed Measure Quantity | M9: PROJECT COST
